{"text_format":"1","workbook":"xlsx","n_sheets":18,"sheets":["Accueil","Feuil2","1couv","Unite","Locaux","Incendie","Electricite","Biologie","Radioactif","Chimie","Animal","physic","CdT","Eval specifique","Plan dactions","Feuil1","Paramètres","4couv"],"not_rendered":{"charts":0,"images":6,"macros":1,"external_links":0,"defined_names":42,"comments":10,"pivot_tables":0},"unopened":[],"bounds":{"document_bytes":16777216,"sheet_cells":100000,"rows_first":2000,"rows_last":500,"rows_between":2000,"halvings":0,"cell_chars":16384,"cell_head_chars":4096},"cells_cut":0,"cells_raw":0,"read":"whole","date_system":"1900"}

{"sheet":"Accueil","index":0,"n_rows":20,"n_cols":10,"rows_kept":20,"cut":false,"hidden":false,"merged":[[11,9,11,12],[1,5,1,7],[1,8,1,11],[25,14,25,16],[3,4,3,12],[15,4,15,6],[15,9,15,12],[17,4,17,6],[17,9,17,12],[19,4,19,6],[19,9,19,12],[13,4,13,6],[13,9,13,12],[4,4,4,12],[6,4,7,7],[6,8,7,12],[11,4,11,6]]}
[]
[null,null,null,null,null,"Année civile:",null,null,2019]
[]
[null,null,null,null,"Le document unique d'évaluation des risques professionnels"]
[null,null,null,null,"Décret n° 2001-1016 du 5 novembre 2001"]
[]
[null,null,null,null,"DR __________",null,null,null,"Structure …\nEquipe …"]
[]
[]
[]
[]
[null,null,null,null,"1-Unité",null,null,null,null,"6-Radioactivité"]
[]
[null,null,null,null,"2-Locaux",null,null,null,null,"7-Chimie"]
[]
[null,null,null,null,"3-Incendie",null,null,null,null,"8-Expérimentation animale"]
[]
[null,null,null,null,"4-Electricité",null,null,null,null,"9-Physique"]
[]
[null,null,null,null,"5-Biologie",null,null,null,null,"10-Conditions de travail"]

{"sheet":"Feuil2","index":1,"n_rows":10,"n_cols":11,"rows_kept":10,"cut":false,"hidden":true,"merged":[[2,10,3,10],[3,4,3,9],[2,2,3,3],[2,4,2,9]]}
[]
[]
[null,null,null,null,"Document d'évaluation des risques professionnels ",null,null,null,null,null,"V. 22/06/2012"]
[null,null,null,null,"Document unique d'unité de recherche"]
[]
[]
[]
[]
[]
[null," "]

{"sheet":"1couv","index":2,"n_rows":17,"n_cols":10,"rows_kept":17,"cut":false,"hidden":true,"merged":[]}
[]
[]
[]
[]
[]
[]
[]
[]
[]
[]
[]
[]
[]
[]
[]
[]
[null,null,null,null,null,null,null,null,null,"        "]

{"sheet":"Unite","index":3,"n_rows":27,"n_cols":5,"rows_kept":27,"cut":false,"hidden":true,"merged":[[0,0,0,4],[8,65,8,68],[9,67,9,68],[14,0,14,1],[5,65,7,68],[3,0,3,3],[3,65,3,68],[5,0,7,4],[4,0,4,4],[2,0,2,4],[1,0,1,4],[18,2,20,2],[17,4,20,4],[17,3,20,3],[39,2,39,4],[38,2,38,4],[37,2,37,4],[36,2,36,4],[35,2,35,4],[34,2,34,4],[33,2,33,4],[32,2,32,4],[31,2,31,4],[30,2,30,4],[25,0,25,4],[24,2,24,4],[23,2,23,4],[29,2,29,4],[21,0,21,1],[21,2,21,4],[22,2,22,4],[28,2,28,4],[27,2,27,4],[26,2,26,4]]}
["DOCUMENT D'EVALUATION DES RISQUES PROFESSIONNELS :\nDOCUMENT UNIQUE D'UNITE DE RECHERCHE\n(décret n° 2001-1016 du 5 novembre 2001)"]
["Le présent questionnaire est destiné à identifier et recenser les risques présents dans la structure de recherche. Sous l'autorité du responsable de structure, l'assistant de prévention participe activement à l'élaboration de ce document, avec l'aide du conseiller de prévention. "]
["L’analyse du questionnaire est validée et signée par le Responsable de structure. Elle doit permettre la mise en oeuvre des actions correctives exprimées et hiérarchisées, de même que les actions d'information et de formation nécessaires à la prévention des risques professionnels et à l'amélioration des conditions de travail :\n\n  -  A surveiller : actions mineures à mettre en place ou vérifier que les moyens de prévention sont toujours existants, fonctionnels, appliqués \n\n  -  Rapidement : actions à entreprendre dans l'année\n\n  -  Urgent : actions à entreprendre immédiatement   \n                                                                                                                                                                                                                                                                                                                                               "]
[]
[]
["Une mise à jour de ce questionnaire doit être réalisée annuellement. Elle prend en compte les améliorations apportées depuis l'exploitation du questionnaire précédent ainsi que les nouveaux risques engendrés par de nouvelles techniques et d'éventuels nouveaux programmes de recherche entrepris dans l'unité"]
[]
[]
[]
["Intitulé de la structure"]
["Thématique"]
["Date de création ou de renouvellement de la structure"]
["Rattachement à un centre de recherche: si oui lequel"]
["Nom du Directeur de la structure"]
[null,null,"Date de \nFormation","Décision de nomination","Lettre de missions/cadrage"]
["Nom de(s) l'assistant(s) de prévention "]
["Nom de la(les) Personne(s) Compétente en Radioprotection (PCR)"]
["Nombre de personnes formées aux premiers secours (SST / PSC1)"]
["Existence d'un règlement intérieur"]
["Existence du registre santé et sécurité au travail "]
["Existence du registre incendie"]
[null,null,"Précisions"]
["Nombre total de personnes présentes dans l'unité"]
["Nombre de personnels rémunérés par l'Inserm"]
["Nombre de personnels handicapés"]
[]
[null,"Principaux risques","Maîtrise du risque"]

{"sheet":"Locaux","index":4,"n_rows":50,"n_cols":7,"rows_kept":50,"cut":false,"hidden":true,"merged":[[18,4,18,6],[23,4,23,6],[23,2,24,3],[22,0,22,6],[23,0,24,0],[23,1,24,1],[0,0,0,6],[17,4,17,6],[8,4,8,6],[4,0,4,6],[3,0,3,6],[1,3,1,6],[2,3,2,6],[46,4,46,6],[37,1,38,1],[37,4,37,6],[45,0,45,6],[36,0,36,6],[46,2,47,2],[46,3,47,3],[46,1,47,1],[37,3,38,3],[37,2,38,2]]}
["LOCAUX ET ISSUES"]
["Votre formation de recherche est répartie sur ",null,"     site(s)","Précisions"]
["Nombre de bâtiments occupés"]
[{"$f":"IF(B3>1,\"Ceux dont la formation est répartie sur plusieurs batiments doivent remplir un questionnaire par batiment\",\"\")","v":""}]
["RENSEIGNEMENTS GENERAUX"]
[null,"Liste de choix","Précisions éventuelles"]
["Identité de l'hébergeant"]
["Nombre d'étages "]
["Locaux desservis par ascenseur ou monte charge",null,null,null,"Plan d'actions"]
["Nombre d'ascenseurs",null,null,null,"Actions","Priorité","Réalisateur(s)"]
["Contrat de maintenance ascenseur"]
["Présence d'escaliers de secours"]
["Locaux accessibles aux personnes handicapées"]
["Moyen d'accès sécurisé aux locaux"]
["Surface totale des locaux",null,"m2"]
["Immeuble de grande hauteur (IGH) / Etablissement recevant du public (ERP)",null,"Précisions éventuelles"]
["Diagnostic de présence d'amiante (DTA)"]
[null,null,"Précisions éventuelles"]
["Ventilation générale (sauf locaux de confinement)",null,null,null,"Plan d'actions"]
["Climatisation",null,null,null,"Actions","Priorité","Réalisateur(s)"]
["Nombre de postes de travail aménagés pour personnels handicapés"]
[]
["L'unité dispose de (ou a accès à) "]
[null,"Liste de choix","Précisions éventuelles",null,"Plan d'actions"]
[null,null,null,null,"Actions","Priorité","Réalisateur(s)"]
["Nombre de bureaux"]
["Nombre de laboratoires"]
["Nombre de pièces de laverie"]
["Chambre(s) froide(s)"]
["Chambre(s) noire(s)"]
["Si présence d'un atelier : conformité des machines"]
["Espace de détente"]
["Salle(s) de réunion / bibliothèque"]
["Pièce n°1  partagée avec d'autres formations "]
["Pièce n°2  partagée avec d'autres formations "]
["Pièce n°3  partagée avec d'autres formations "]
["LOCAUX DE STOCKAGE"]
[null,"Oui ou non ","Précisions utiles enventuelles","Maîtrise du risque","Plan d'actions"]
[null,null,null,null,"Actions","Priorité","Réalisateur(s)"]
["Locaux de stockage d'azote liquide"]
["Locaux de stockage de CO2 et autres gaz"]
["Locaux de stockage de déchets chimiques"]
["Locaux de stockage des déchets radioactifs"]
["Locaux de stockage de déchets biologiques"]
["Locaux de stockage de produits chimiques (produits neufs par exemple)"]
["ENCOMBREMENT"]
[null,"Oui ou non ","Précisions utiles enventuelles","Maîtrise du risque","Plan d'actions"]
[null,null,null,null,"Actions","Priorité","Réalisateur(s)"]
["Les couloirs et accès offrent un passage > ou = à 90 cm"]
["Présence de matériel dans les couloirs de circulation"]

{"sheet":"Incendie","index":5,"n_rows":43,"n_cols":8,"rows_kept":43,"cut":false,"hidden":true,"merged":[[28,0,28,7],[29,5,29,7],[14,3,15,3],[14,4,15,4],[29,4,30,4],[29,3,30,3],[14,1,15,2],[23,1,24,2],[29,1,30,2],[23,3,24,3],[23,5,23,7],[23,4,24,4],[22,0,22,7],[0,0,0,7],[13,0,13,7],[2,0,2,7],[3,1,4,1],[14,5,14,7],[3,5,3,7],[3,4,4,4],[3,3,4,3],[3,2,4,2],[1,0,1,7]]}
["RISQUE INCENDIE"]
[]
["EQUIPEMENTS DE PROTECTION"]
[null,"Oui ou non","Contrôle annuel","Précisions éventuelles","Maîtrise du risque","Plan d'actions"]
[null,null,null,null,null,"Actions","Priorité","Réalisateur(s)"]
["Présence de détecteurs incendie"]
["Présence de bloc autonomes d'éclairage de sécurité"]
["Système de désenfumage"]
["Présence de douche en cas d'urgence"]
["Présence de couvertures anti-feu"]
["Présence d'extincteurs adaptés au risque"]
["Présence de portes coupe-feu"]
["Présence d'issues de secours "]
["EQUIPEMENTS DE DETECTION"]
[null,"Oui ou non",null,"Précisions éventuelles","Maîtrise du risque","Plan d'actions"]
[null,null,null,null,null,"Actions","Priorité","Réalisateur(s)"]
["Existence d'un système d'alarme sonore"]
["Existence d'un PC de sécurité"]
["Si oui, report d'alarme vers le PC de sécurité"]
["Il existe un plan d'évacuation des locaux"]
["Chargés d'évacuation"]
["Il existe un panneau de consignes en cas d'accident et d'incendie, personnel informés de la conduite à tenir en cas d'urgence"]
["EXERCICES INCENDIE"]
[null,"Oui ou non",null,"Précisions éventuelles","Maîtrise du risque","Plan d'actions"]
[null,null,null,null,null,"Actions","Priorité","Réalisateur(s)"]
["Le dernier exercice d'évacuation date de moins 1 an"]
["Réalisation du dernier exercice de manipulation d'extincteurs "]
["Nombre de personnes formées à la manipulation d'extincteurs"]
["PRESENCE DE BOUTEILLES DE GAZ OU DE LOCAUX A RISQUES"]
[null,"Oui ou non",null,"Précisions éventuelles","Maîtrise du risque","Plan d'actions"]
[null,null,null,null,null,"Actions","Priorité","Réalisateur(s)"]
["Gaz butane"]
["Gaz propane"]
["Oxygène"]
["Hydrogène"]
["si autre, lesquel"]
["si autre, lesquel"]
["si autre, lesquel"]
["si autre, lesquel"]
["si autre, lesquel"]
["Présence de gaz de ville"]
["Présence de détecteurs pour gaz toxique ou explosible"]
["Présence de pièces à pouvoir calorifique élevé(archives, stockage papiers..)"]

{"sheet":"Electricite","index":6,"n_rows":32,"n_cols":16,"rows_kept":32,"cut":false,"hidden":true,"merged":[[29,1,30,1],[29,2,30,2],[29,3,30,3],[23,0,23,6],[24,1,25,1],[24,2,25,2],[24,3,25,3],[16,0,16,6],[2,0,2,6],[6,0,6,6],[7,1,8,1],[7,2,8,2],[7,3,8,3],[7,4,7,6],[0,0,0,6],[24,4,24,6],[29,4,29,6],[3,4,3,6],[12,4,12,6],[17,4,17,6],[3,3,4,3],[3,2,4,2],[11,0,11,6],[12,3,13,3],[12,2,13,2],[3,1,4,1],[12,1,13,1],[17,1,18,1],[17,2,18,2],[17,3,18,3]]}
["RISQUE ELECTRIQUE"]
[]
["HABILITATION DU PERSONNEL"]
[null,"Nombre","Précisions éventuelles","Maîtrise du risque","Plan d'actions",null,null,null,null,null,null,"oui","6 mois",null,"Laboratoire"]
[null,null,null,null,"Actions","Priorité","Réalisateur(s)",null,null,null,null,"non","1 an",null,"Délégation Régionale"]
["Nombre de personnes habilitées",null,null,null,null,null,null,null,null,null,null,null,"2 ans",null,"Hébergeant"]
["Présence de disjoncteurs différentiels de 300 mA "]
[null,"Oui ou non","Précisions éventuelles","Maîtrise du risque","Plan d'actions"]
[null,null,null,null,"Actions","Priorité","Réalisateur(s)",null,null,null,null,"aucune","inexistants"]
["Situés sur le tableau général"]
["Situés dans les pièces"]
["Présence de disjoncteurs différentiels de 30 mA "]
[null,"Oui ou non","Précisions éventuelles","Maîtrise du risque","Plan d'actions",null,null,null,null,"Urgent",null,null,null,null,null,"Unité"]
[null,null,null,null,"Actions","Priorité","Réalisateur(s)",null,null,"Rapidement ",null,null,null,null,null,"Hébergeant"]
["Situés sur le tableau général",null,null,null,null,null,null,null,null,null,null,null,null,null,null,"Oui"]
["Situés dans les pièces",null,null,null,null,null,null,null,null,null,null,null,null,null,null,"Non"]
["Contrôles de l'installation"]
[null,"Oui ou non","Précisions éventuelles","Maîtrise du risque","Plan d'actions"]
[null,null,null,null,"Actions","Priorité","Réalisateur(s)",null,null,null,null,null,null,null,null,"Maîtrisé"]
["Contrôle annuel",null,null,null,null,null,null,null,null,null,null,null,null,null,null,"A améliorer"]
["Réalisé par",null,null,null,null,null,null,null,null,null,null,null,null,null,null,"A maîtriser"]
["Vous avez connaissance des rapports de contrôle"]
["Les prescriptions de contrôle sont suivies d'effet"]
["Appareils à tres haute tension courant continu (THT)"]
[null,"Types","Précisions éventuelles","Maîtrise du risque","Plan d'actions"]
[null,null,null,null,"Actions","Priorité","Réalisateur(s)"]
["Type d'appareil utilisé - appareil 1"]
["Type d'appareil utilisé - appareil 2"]
["Type d'appareil utilisé - appareil 3"]
[null,"Oui ou non","Précisions éventuelles","Maîtrise du risque","Plan d'actions"]
[null,null,null,null,"Actions","Priorité","Réalisateur(s)"]
["Présence de rallonges ou prises multiples"]

{"sheet":"Biologie","index":7,"n_rows":91,"n_cols":34,"rows_kept":91,"cut":false,"hidden":true,"merged":[[0,0,0,9],[13,7,13,9],[31,1,31,2],[1,0,1,2],[5,1,5,2],[20,0,20,9],[12,0,12,9],[21,1,22,2],[21,3,22,3],[3,7,3,9],[11,1,11,2],[9,1,9,2],[10,1,10,2],[13,3,14,3],[13,5,14,5],[6,1,6,2],[2,0,2,9],[29,1,29,2],[21,7,21,9],[7,1,7,2],[3,5,4,5],[3,4,4,4],[3,3,4,3],[3,1,4,2],[8,1,8,2],[13,2,14,2],[13,1,14,1],[59,0,60,0],[53,5,54,5],[53,4,54,4],[53,2,54,2],[59,4,60,4],[59,5,60,5],[59,3,60,3],[53,0,54,0],[32,1,32,2],[23,1,23,2],[24,1,24,2],[25,1,25,2],[27,1,27,2],[13,4,14,4],[37,1,37,2],[38,0,38,9],[33,1,33,2],[21,4,22,4],[21,5,22,5],[35,1,35,2],[36,1,36,2],[28,1,28,2],[59,7,59,9],[47,1,48,2],[47,3,48,3],[47,4,48,4],[47,5,48,5],[53,1,54,1],[53,7,53,9],[49,1,49,2],[50,1,50,2],[59,1,60,1],[59,2,60,2],[51,1,51,2],[53,3,54,3],[47,7,47,9],[52,0,52,9],[68,1,68,2],[66,5,67,5],[69,1,69,2],[89,1,89,2],[70,1,70,2],[83,1,83,2],[72,0,72,9],[73,5,74,5],[73,4,74,4],[87,4,88,4],[87,5,88,5],[78,0,78,9],[79,1,80,2],[79,7,79,9],[87,7,87,9],[79,4,80,4],[86,0,86,9],[87,1,88,2],[85,1,85,2],[26,1,26,2],[3,0,4,0],[13,0,14,0],[21,0,22,0],[47,0,48,0],[66,0,67,0],[73,0,74,0],[79,0,80,0],[87,0,88,0],[42,0,42,9],[46,0,46,9],[81,1,81,2],[79,5,80,5],[84,1,84,2],[82,1,82,2],[65,0,65,9],[66,1,67,2],[66,4,67,4],[73,3,74,3],[73,2,74,2],[73,1,74,1],[73,7,73,9],[66,7,66,9],[71,1,71,2]]}
[" RISQUE D'ORIGINE BIOLOGIQUE",null,null,null,null,null,null,null,null,null,null,1]
["Utilisez-vous des produits biologiques ? ",null,null,null,null,null,null,null,null,null,null,2]
["Prélèvements d’origine humaine"]
[null,"Oui ou non",null,"Nbre de personnes exposées","Précisions éventuelles\n(Origine/fournisseur)","Maîtrise du risque",null,"Plan d'actions",null,null,null,3,null,"Oui",null,null,null,null,null,null,null,null,null,null,null,null,null,null,"aucun"]
[null,null,null,null,null,null,null,"Actions","Priorité","Réalisateur(s)",null,4,null,null,null,1,null,null,null,null,null,null,null,null,null,null,null,null,null,null,null,"homme",null,"urine"]
["Sang ",null,null,null,null,null,null,null,null,null,null,"Oui",null,"Non","Oui",2,null,null,null,null,null,null,null,null,null,null,null,null,1,null,null,"bovins","oui","placenta"]
["Autre prélevement 1",null,null,null,null,null,null,null,null,null,null,null,null,null,"sans objet",4,"A améliorer",null,null,null,null,null,null,null,null,null,null,null,3,null,"un hopital","rongeurs","sans objet","organes lymphoides"]
["Autre prélevement 2"]
["Autre prélevement 3"]
["Autre prélevement 4"]
["Autre prélevement 5"]
["Conventions avec le fournisseur pour tous les types de prélèvement",null,null,null,null,null,null,null,null,null,null,null,null,null,null,"tous","A maîtriser",null,null,null,null,null,null,null,null,null,null,null,4,null,"autre provenance","primates",null,"tissus osseux"]
["Prélèvements d'origine animale",null,null,null,null,null,null,null,null,null,null,null,null,null,null,null,null,null,null,null,null,null,null,null,null,null,null,null,5,null,"diverses","autres",null,"organes"]
[null,"Choix","Origine","Nbre de personnes exposées","Précisions éventuelles","Maîtrise du risque",null,"Plan d'actions",null,null,null,null,null,null,null,null,null,null,null,null,null,null,null,null,null,null,null,null,6,null,"sans objet","sans objet",null,"sans objet"]
[null,null,null,null,null,null,null,"Actions","Priorité","Réalisateur(s)",null,null,null,null,null,null,null,null,null,null,null,null,null,null,null,null,null,null,7,null,null,null,"œil"]
["Espèce concernée",null,null,null,null,null,null,null,null,null,null,null,null,null,null,null,null,null,null,null,null,null,null,null,null,null,null,null,8,null,null,null,"snc"]
["Espèce concernée"]
["Espèce concernée"]
["Autre espèce concernée"]
["Autre espèce concernée",null,null,null,null,null,null,null,null,null,null,null,null,null,null,null,null,null,null,null,null,null,null,null,null,null,null,null,9,null,null,null,"lcr"]
["Bactéries, virus, champignons ou parasites pathogènes",null,null,null,null,null,null,null,null,null,null,null,null,null,null,null,null,null,null,null,null,null,null,null,null,null,null,null,10,null,"sauvage",null,"org.lymphoides"]
["                                       ","Oui ou non",null,"Nbre de personnes exposées","Précisions éventuelles","Maîtrise du risque",null,"Plan d'actions",null,null,null,null,null,null,null,null,null,null,null,null,null,null,null,null,null,null,null,null,11,null,"élevage conventionné",null,"autres","dans un autre lieu"]
[null,null,null,null,null,null,null,"Actions","Priorité","Réalisateur(s)",null,"homme","oeil",null,null,null,null,null,null,null,null,null,null,null,null,null,null,null,12,null,"autre"]
["Bactéries de classe de risque 2",null,null,null,null,null,null,null,null,null,null,"bovin","snc",null,null,null,null,null,null,null,null,null,null,null,null,null,null,null,13,null,"sans objet",null,null,"en propre"]
["Bactéries de classe de risque 3",null,null,null,null,null,null,null,null,null,null,"ovin","lcr",null,null,null,null,null,null,null,null,null,null,null,null,null,null,null,14,null,null,null,null,"en commun avec une autre unité"]
["Bactéries de classe de risque 4",null,null,null,null,null,null,null,null,null,null,"autre","org.lymphoide",null,null,null,null,null,null,null,null,null,null,null,null,null,null,null,null,null,null,null,null,"non"]
[null,null,null,null,null,null,null,null,null,null,null,null,"autre",null,null,null,null,null,null,null,null,null,null,null,null,null,null,null,null,null,null,null,null,"non"]
["Virus de classes de risque 2"]
["Virus de classe de risque 3"]
["Virus de classe de risque 4"]
[]
["Champignons de classes de risque 2",null,null,null,null,null,null,null,null,null,null,"Urgent"]
["Champignons de classe de risque 3",null,null,null,null,null,null,null,null,null,null,"Rapidement "]
["Champignons de classe de risque 4",null,null,null,null,null,null,null,null,null,null,"A surveiller"]
[]
["Parasites de classes de risque 2",null,null,null,null,null,null,null,null,null,null,null,null,null,null,null,null,null,null,null,null,null,null,null,null,null,null,null,null,null,"FFP1","coton"]
["Parasites de classe de risque 3",null,null,null,null,null,null,null,null,null,null,null,null,null,null,null,null,null,null,null,null,null,null,null,null,null,null,null,null,null,"FFP2","non tissé"]
["Parasites de classe de risque 4",null,null,null,null,null,null,null,null,null,null,null,null,null,null,null,null,null,null,null,null,null,null,null,null,null,null,null,null,null,"FFP3"]
["Cellules humaines"]
[null,"Oui ou non","Classe de confinement","Nbre de personnes exposées","Précisions","Maîtrise du risque",null,"Actions","Priorité","Réalisateur(s)",null,null,null,null,null,null,null,null,null,null,null,null,null,null,null,null,null,16,null,"pas de gants",null,null,"CHU"]
["Cultures primaires",null,null,null,null,null,null,null,null,null,null,null,null,null,null,null,null,null,null,null,null,null,null,null,null,null,null,17,null,"latex ",null,null,"CTS"]
["Lignées commercialisées"]
["Risque prion ",null,null,null,null,null,null,null,null,null,null,null,null,null,null,null,null,null,null,null,null,null,null,null,null,null,null,null,21,null,null,"sans objet",null,"sang"]
[null,"Origine","Tissu utilisé","Suspensions concentrées","Nbre de personnes exposées","Maîtrise du risque",null,"Actions","Priorité","Réalisateur(s)",null,null,null,null,null,null,null,null,null,null,null,null,null,null,null,null,null,null,22,null,"L1"]
["Risque prion",null,null,null,null,null,null,null,null,null,null,null,null,null,null,null,null,null,null,null,null,null,null,null,null,null,null,null,23,null,"L2",0,null,"tissus"]
["Risque prion (autre origine)",null,null,null,null,null,null,null,null,null,null,null,null,null,null,null,null,null,null,null,null,null,null,null,null,null,null,null,24,null,"L3",1,null,"organes"]
["OGM",null,null,null,null,null,null,null,null,null,null,null,null,null,null,null,null,null,null,null,null,null,null,null,null,null,null,null,null,null,null,3,null,"sans objet"]
[null,"Oui ou non",null,"Nbre de personnes exposées","Précisions éventuelles","Maîtrise du risque",null,"Plan d'actions",null,null,null,null,null,null,null,null,null,null,null,null,null,null,null,null,null,null,null,null,null,null,4]
[null,null,null,null,null,null,null,"Actions","Priorité","Réalisateur(s)",null,null,null,null,null,null,null,null,null,null,null,null,null,null,null,null,null,25,null,"sans objet",5,null,"labo en dépression"]
["OGM de classe de confinement 1 couverts par une déclaration",null,null,null,null,null,null,null,null,null,null,null,null,null,null,null,null,null,null,null,null,null,null,null,null,null,null,26,null,"vérifié semestriellement",6,null,"sas en dépression"]
["OGM de classe de confinement 2 et/ou 3 couverts par un agrément",null,null,null,null,null,null,null,null,null,null,null,null,null,null,null,null,null,null,null,null,null,null,null,null,null,null,27,52,"vérifié annuellement",7,null,"les 2 en dépression"]
[null,null,null,null,null,null,null,null,null,null,null,null,null,null,null,null,null,null,null,null,null,null,null,null,null,null,null,28,53,"vérifié tous les 2 ans"]
["LOCAUX"]
["Laboratoires de confinement L2 ","Nombre de L2 utilisé(s)","Nb de L2 disposant d'un SAS","Nb de SAS en surpression","Précisions éventuelles","Maîtrise du risque",null,"Plan d'actions",null,null,null,null,null,null,null,null,null,null,null,null,null,null,null,null,null,null,null,null,54]
[null,null,null,null,null,null,null,"Actions","Priorité","Réalisateur(s)",null,null,null,null,null,null,null,null,null,null,null,null,null,null,null,null,null,null,55]
["La structure dispose de confinement(s) L2 propre(s)",null,null,null,null,null,null,null,null,null,null,null,null,null,null,null,null,null,null,null,null,null,null,null,null,null,null,null,56]
["La structure a accès à un confinement L2 situé dans une autre structure ",null,null,null,null,null,null,null,null,null,null,null,null,null,null,null,null,null,null,null,null,null,null,null,null,null,null,null,57]
["Contrat de contrôle / maintenance du ou des L2",null,null,null,null,null,null,null,null,null,null,null,"Oui",null,null,1,null,null,null,null,null,null,null,null,null,null,null,null,59]
[null,null,null,null,null,null,null,null,null,null,null,null,"Non",null,null,2]
["Laboratoire de confinement L3 ","Nombre de L3 utilisé(s)","Nombre de zone(s) de manip","Nombre de SAS","Précisions éventuelles","Maîtrise du risque",null,"Plan d'actions",null,null,null,null,null,null,null,3]
[null,null,null,null,null,null,null,"Actions","Priorité","Réalisateur(s)"]
["La structure dispose de confinement(s) L3 propre(s)"]
["La structure a accès à un confinement L3 situé dans une autre structure ",null,null,null,null,null,null,null,null,null,null,null,null,null,null,null,null,null,null,null,null,null,null,null,null,null,null,null,60]
["Contrat de contrôle / maintenance du (des) L3",null,null,null,null,null,null,null,null,null,null,null,null,null,null,4,null,null,null,null,null,null,null,null,null,null,null,null,66]
["Autoclave à double entrée"]
["PERSONNELS"]
[null,"Oui ou non",null,null,"Précisions éventuelles","Maîtrise du risque",null,"Plan d'actions"]
[null,null,null,null,null,null,null,"Actions","Priorité","Réalisateur(s)"]
["Référent L2 / L3 formé(s)"]
["Nombre de personnes formées au travail en confinement",null,null,null,null,null,null,null,null,null,null,null,null,null,null,null,null,null,null,null,null,null,null,null,null,null,null,null,67]
["Nombre de personnes autorisées à travailler en laboratoire de confinement ",null,null,null,null,null,null,null,null,null,null,null,null,null,null,null,null,null,null,null,null,null,null,null,null,null,null,null,70]
["Nombre de personnes formées à la conduite d'autoclave "]
["EQUIPEMENTS DE PROTECTION COLLECTIVE"]
[null,"Nombre","Date du dernier contrôle","Nbre de déclarées conformes","Précisions éventuelles","Maîtrise du risque",null,"Plan d'actions",null,null,null,null,null,null,null,null,null,null,null,null,null,null,null,null,null,null,null,null,72]
[null,null,null,null,null,null,null,"Actions","Priorité","Réalisateur(s)",null,null,null,null,null,null,null,null,null,null,null,null,null,null,null,null,null,null,73]
["Postes de sécurité microbiologique type II NF",null,null,null,null,null,null,null,null,null,null,null,null,null,null,null,null,null,null,null,null,null,null,null,null,null,null,null,74]
["Rotors de centrifugeuse ou nacelles hermétiques",null,null,null,null,null,null,null,null,null,null,null,null,null,null,null,null,null,null,null,null,null,null,null,null,null,null,null,76]
["Autoclave(s)",null,null,null,null,null,null,null,null,null,null,null,null,null,null,null,null,null,null,null,null,null,null,null,null,null,null,null,83]
["EQUIPEMENTS DE PROTECTION INDIVIDUELS (EPI)",null,null,null,null,null,null,null,null,null,null,null,null,null,null,null,null,null,null,null,null,null,null,null,null,null,null,null,84]
[null,"Choix",null,null,"Précisions éventuelles","Maîtrise du risque",null,"Plan d'actions",null,null,null,null,null,null,"FFP1","latex ",null,null,null,null,null,null,null,null,null,null,null,null,85]
[null,null,null,null,null,null,null,"Actions","Priorité","Réalisateur(s)",null,null,null,null,"FFP2","nitrile",null,null,null,null,null,null,null,null,null,null,null,null,86]
["Gants respectant la norme EN 374-2",null,null,null,null,null,null,null,null,null,null,null,null,null,"FFP3","latex et nitrile ",null,null,null,null,null,null,null,null,null,null,null,null,87]
["Masques FFP2 ou FFP3",null,null,null,null,null,null,null,null,null,null,null,null,null,null,null,null,null,null,null,null,null,null,null,null,null,null,null,88]
["Utilisation de lunettes de sécurité/écran de protection faciale",null,null,null,null,null,null,null,null,null,null,null,null,null,null,null,null,null,null,null,null,null,null,null,null,null,null,null,89]
["Blouses utilisées",null,null,null,null,null,null,null,null,null,null,null,null,null,null,null,null,null,null,null,null,null,null,null,null,null,null,null,90]
["Surblouses ou tenues spécifiques utilisées",null,null,null,null,null,null,null,null,null,null,null,null,null,"coton",null,null,null,null,null,null,null,null,null,null,null,null,null,91]
["GESTION DES DECHETS BIOLOGIQUES"]
[null,"Oui ou non",null,null,"Précisions éventuelles","Maîtrise du risque",null,"Plan d'actions",null,null,null,null,null,null,null,null,null,null,null,null,null,null,null,null,null,null,null,null,93]
[null,null,null,null,null,null,null,"Actions","Priorité","Réalisateur(s)",null,null,null,null,null,null,null,null,null,null,null,null,null,null,null,null,null,null,94]
["Gestion des déchets conforme à la réglementation",null,null,null,null,null,null,null,null,null,null,null,null,null,null,null,null,null,null,null,null,null,null,null,null,null,null,null,95]
[null,null,null,null,null,null,null,null,null,null,null,null,null,null,null,null,null,null,null,null,null,null,null,null,null,null,null,null,100]

{"sheet":"Radioactif","index":8,"n_rows":85,"n_cols":20,"rows_kept":85,"cut":false,"hidden":true,"merged":[[19,0,19,1],[20,0,20,1],[35,0,35,7],[30,1,31,1],[29,0,29,7],[30,2,31,3],[30,4,31,4],[30,5,30,7],[21,0,21,1],[22,0,22,1],[23,0,23,1],[0,0,0,7],[7,0,7,3],[3,5,3,7],[1,5,1,7],[3,4,4,4],[1,0,1,3],[2,0,2,7],[5,0,5,3],[6,0,6,3],[61,5,61,7],[52,5,52,7],[51,0,51,7],[44,5,44,7],[43,0,43,7],[44,4,45,4],[44,2,45,3],[44,1,45,1],[61,4,62,4],[61,2,62,3],[61,1,62,1],[52,4,53,4],[52,2,53,3],[60,0,60,7],[52,1,53,1],[67,4,68,4],[67,2,68,3],[67,5,67,7],[67,1,68,1],[9,0,9,7],[25,1,26,1],[25,2,26,3],[25,4,26,4],[25,5,25,7],[24,0,24,7],[36,4,37,4],[36,3,37,3],[36,2,37,2],[36,5,36,7],[66,0,66,7],[36,1,37,1],[8,0,8,3],[18,0,18,1],[17,0,17,1],[16,0,16,1],[15,0,15,1],[14,0,14,1],[13,0,13,1],[12,0,12,1],[11,0,11,1]]}
["RISQUE RADIOACTIF"]
["Utilisez-vous des radioéléments ? ",null,null,null,null,null,null,null,null,"Urgent","oui"]
["SOURCES RADIOACTIVES"]
[null,null,null,null,"Oui ou non","Plan d'actions"]
[null,null,null,null,null,"Actions","Priorité","Réalisateur(s)"]
["                Sources Scellées",null,null,null,null,null,null,null,null,"A surveiller","sans objet"]
["                Sources non Scellées"]
["                Autorisation ASN de détention/utilisation  en cours de validité"]
["                Date de la formation de la PCR"]
["Activités détenues et manipulées à préciser pour chaque radioélément (cf. Autorisation)"]
[null,null,"Choix","Activité maximale detenue ","Activité manipulée","Nbre de personnes exposées"]
["32P",null,null,null,null,null,null,null,null,null,null,"Non"]
["35S"]
["14C",null,null,null,null,null,null,null,null,null,null,null,null,null,"oui","51Cr"]
["3H",null,null,null,null,null,null,null,null,null,null,null,null,null,"non","55Fe",null,"aucun"]
["125I",null,null,null,null,null,null,null,null,null,null,null,null,null,"sans objet","99Tc"]
["131I",null,null,null,null,null,null,null,null,null,null,null,null,null,"tous les 6 mois","111In"]
["33P",null,null,null,null,null,null,null,null,null,null,null,null,null,"annuellement","123I"]
["51Cr",null,null,null,null,null,null,null,null,null,null,null,null,null,"tous les 2 ans","22Na"]
["Autre (préciser le radioélément) ",null,null,null,null,null,null,null,null,null,null,null,null,null,"jamais","36Cl"]
["Autre (préciser le radioélément) ",null,null,null,null,null,null,null,null,null,null,null,null,null,null,"autre"]
["Autre (préciser le radioélément) "]
["Autre (préciser le radioélément) "]
["Autre (préciser le radioélément) "]
["LOCAUX",null,null,null,null,null,null,null,null,null,null,null,null,null,null,"226Ra"]
[null,null,"Précisions",null,"Maîtrise du risque","Plan d'actions"]
[null,null,null,null,null,"Actions","Priorité","Réalisateur(s)"]
["Nombre de zones surveillées",null,null,null,null,null,null,null,null,null,null,null,null,null,null,"137Cs"]
["Existence zone contrôlée",null,null,null,null,null,null,null,null,null,null,null,null,null,null,"sans objet"]
["EQUIPEMENTS MATERIELS"]
[null,"Oui ou non","Précisions",null,"Maîtrise du risque","Plan d'actions"]
[null,null,null,null,null,"Actions","Priorité","Réalisateur(s)"]
["Présence d'un irradiateur"]
["Présence de compteurs à scintillation"]
["Contrôle/Maintenance"]
["EQUIPEMENTS DE PROTECTION COLLECTIVE"]
[null,"Oui ou non","Nombre","Nbre de déclarées conformes","Maîtrise du risque","Plan d'actions"]
[null,null,null,null,null,"Actions","Priorité","Réalisateur(s)"]
["Présence d'une sorbonne"]
["Présence d'une boite à gants ",null,null,null,null,null,null,null,null,null,null,null,null,null,null,"propre à l'unité"]
["Présence d'écrans pour les émetteurs β",null,null,null,null,null,null,null,null,null,null,null,null,null,null,"partagée avec d'autres"]
["Présence de poubelles adaptées aux émetteurs β",null,null,null,null,null,null,null,null,null,null,null,null,null,null,"sans objet"]
["Présence de poubelles adaptées aux émetteurs Υ ou X"]
["CONTRÔLES"]
[null,"Oui ou non","Date du dernier contrôle / Précisions",null,"Maîtrise du risque","Plan d'actions"]
[null,null,null,null,null,"Actions","Priorité","Réalisateur(s)",null,null,null,null,null,null,null,null,null,null,null,"Maîtrisé"]
["Présence de détecteurs β ",null,null,null,null,null,null,null,null,null,null,null,null,null,null,null,null,null,null,"A améliorer"]
["Présence de détecteurs Υ ou X ",null,null,null,null,null,null,null,null,null,null,null,null,"sans objet","mensuel",null,null,null,null,"A maîtriser"]
["Contrôles d'ambiance par la PCR",null,null,null,null,null,null,null,null,null,null,null,null,1,"trimestriel"]
["Contrôle réglementaire par un organisme agréé",null,null,null,null,null,null,null,null,null,null,null,null,null,"semestriel"]
[]
["PERSONNELS"]
[null,"Nb / Oui ou non","Précisions",null,"Maîtrise du risque","Plan d'actions",null,null,null,null,null,null,null,2,"annuel",null,"Inserm commune"]
[null,null,null,null,null,"Actions","Priorité","Réalisateur(s)",null,null,null,null,null,null,"jamais"]
["Nombre de personnes classées en catégorie B ",null,null,null,null,null,null,null,null,null,null,null,null,3,null,null,"non inserm commune"]
["Nombre de personnes classées en catégorie A ",null,null,null,null,null,null,null,null,null,null,null,null,4,"registre entrée sortie des R*",null,"inserm propre au labo"]
["Port de dosimètres",null,null,null,null,null,null,null,null,null,null,null,null,5]
["Dosimétrie opérationelle",null,null,null,null,null,null,null,null,null,null,null,null,7]
["Personnels concernés remplissent leur fiche d'exposition"]
["Nombre de personnels formés par la PCR au travail avec radioéléments"]
["EQUIPEMENTS DE PROTECTION INDIVIDUELLE (EPI)"]
[null,"Oui ou non","Précisions",null,"Maîtrise du risque","Plan d'actions",null,null,null,null,null,null,null,18,null,null,"non conforme"]
[null,null,null,null,null,"Actions","Priorité","Réalisateur(s)",null,null,null,null,null,19]
["Types de gants utilisés",null,null,null,null,null,null,null,null,null,null,null,null,20,null,null,"spécifique à la radioactivité"]
["Port de lunettes de sécurité/écran de protection faciale",null,null,null,null,null,null,null,null,null,null,null,null,21,null,null,"autres utilisation"]
["Port de surblouses ou de tenues spécifiques",null,null,null,null,null,null,null,null,null,null,null,null,23]
["GESTION DES DECHETS RADIOACTIFS",null,null,null,null,null,null,null,null,null,null,null,null,25,null,null,"oui"]
[null,"Oui ou non","Précisions",null,"Maîtrise du risque","Plan d'actions",null,null,null,null,null,null,null,26,null,null,"non"]
[null,null,null,null,null,"Actions","Priorité","Réalisateur(s)","Réalisateur(s)",null,null,null,null,27,null,"tissus","sans objet"]
["Gestion des déchets conforme à la réglementation",null,null,null,null,null,null,null,null,null,null,null,null,28,null,"jetables"]
[null,null,null,null,null,null,null,null,null,null,null,null,null,29,null,"aucune"]
[null,null,null,null,null,null,null,null,null,null,null,null,null,30,null,"oui "]
[null,null,null,null,null,null,null,null,null,null,null,null,null,31,null,"non"]
[null,null,null,null,null,null,null,null,null,null,null,null,null,32,null,"sans objet"]
[null,null,null,null,null,null,null,null,null,null,null,null,null,33,null,"aucun "]
[null,null,null,null,null,null,null,null,null,null,null,null,null,34,null,"chirurgical"]
[null,null,null,null,null,null,null,null,null,null,null,null,null,35,null,"autre","effectuée"]
[null,null,null,null,null,null,null,null,null,null,null,null,null,36,null,"PVC","non effectuée"]
[null,null,null,null,null,null,null,null,null,null,null,null,null,37,null,"latex","balisé et conforme"]
[null,null,null,null,null,null,null,null,null,null,null,null,null,38,null,"autre","commun aux unités inserm"]
[null,null,null,null,null,null,null,null,null,null,null,null,null,39,null,"aucun","partagé avec d'autres organismes"]
[null,null,null,null,null,null,null,null,null,null,null,null,null,40,null,null,"avec l'hébergeant"]
[null,null,null,null,null,null,null,null,null,null,null,null,null,">40",null,null,"entre utilisateurs"]
[null,null,null,null,null,null,null,null,null,null,null,null,null,null,null,null,"avec DGSNR"]
[null,null,null,null,null,null,null,null,null,null,null,null,null,null,null,null,"pas de convention"]

{"sheet":"Chimie","index":9,"n_rows":59,"n_cols":22,"rows_kept":59,"cut":false,"hidden":true,"merged":[[46,0,46,8],[56,1,57,1],[56,2,57,2],[56,3,57,4],[56,5,57,5],[47,0,47,8],[48,5,49,5],[48,2,49,2],[48,3,49,4],[48,1,49,1],[56,6,56,8],[55,0,55,8],[48,6,48,8],[21,1,22,1],[21,2,22,2],[20,0,20,8],[21,5,22,5],[21,6,21,8],[21,3,22,4],[0,0,0,8],[1,0,1,1],[1,4,1,8],[9,5,10,5],[9,1,10,1],[8,0,8,8],[9,6,9,8],[1,2,1,3],[9,3,10,4],[9,2,10,2],[3,6,3,8],[3,0,4,0],[3,1,4,1],[3,5,4,5],[3,4,4,4],[3,3,4,3],[3,2,4,2],[40,3,40,4],[27,0,27,8],[28,1,29,1],[28,2,29,2],[28,3,29,4],[34,0,34,8],[35,0,36,0],[28,6,28,8],[35,6,35,8],[28,5,29,5],[35,2,36,2],[35,4,36,4],[35,3,36,3],[35,5,36,5],[35,1,36,1]]}
["RISQUE CHIMIQUE"]
["Utilisez-vous des produits chimiques ? "]
["Les produits chimiques C / M / R"]
[null,"Cat 1A","Cat 1B","Cat 2","Nb de personnes exposées","Maîtrise du risque","Plan d'actions"]
[null,null,null,null,null,null,"Actions","Priorité","Réalisateur(s)",null,null,null,null,null,null,null,null,null,null,null,null,"Maîtrisé"]
["Cancérogènes ",null,null,null,null,null,null,null,null,null,null,null,null,null,null,null,null,null,null,null,null,"A améliorer"]
["Mutagènes  ",null,null,null,null,null,null,null,null,null,null,null,null,null,null,null,null,null,null,null,null,"A maîtriser"]
["Toxiques pour la reproduction "]
["Les autres produits chimiques"]
[null,"Oui ou non","Nbre de personnes exposées","Précisions éventuelles",null,"Maîtrise du risque","Plan d'actions"]
[null,null,null,null,null,null,"Actions","Priorité","Réalisateur(s)"]
["Médicaments"]
["Toxines"]
["Venins"]
["Produits toxiques et très toxiques"]
["Produits corrosifs"]
["Produits inflammables "]
["Produits explosibles"]
["Gaz toxiques"]
["Autres produits chimiques dangereux y compris pour l'environnement"]
["Affichage / Formation"]
[null,"Oui ou non",null,"Précisions éventuelles",null,"Maîtrise du risque","Plan d'actions"]
[null,null,null,null,null,null,"Actions","Priorité","Réalisateur(s)"]
["Présence d'une liste actualisée des produits chimiques"]
["Présence d'une liste actualisée des produits CMR"]
["Présence des fiches de données de sécurité "]
["Personnels formés à l'utilisation des CMR ou produits dangereux"]
["LOCAUX"]
[null,"Oui ou non",null,"Précisions éventuelles",null,"Maîtrise du risque","Plan d'actions"]
[null,null,null,null,null,null,"Actions","Priorité","Réalisateur(s)"]
["Local de stockage des produits chimiques"]
["Le stockage des produits chimiques respecte-t-il les principes d'incompatibilité"]
["Pièce ou zone de pesée"]
["Zones identifiées de manipulation de CMR"]
["EQUIPEMENTS DE PROTECTION COLLECTIVE (EPC)"]
["Avec contrôle periodique","Nombre","Date dernier contrôle","Nb déclarés conforme","Précisions","Maîtrise du risque","Plan d'actions"]
[null,null,null,null,null,null,"Actions","Priorité","Réalisateur(s)"]
["Présence de sorbonnes"]
["Présence d'ETRAF (hottes chimiques)"]
["Présence de tables aspirantes"]
["Sans contrôle periodique","Oui ou non",null,"Précisions",null,"Maîtrise du risque","Actions","Priorité","Réalisateur(s)"]
["Présence d’armoires de sécurité dédiées et par risque (inflammables, acides, bases….)"]
["Présence d’armoires fermant à clé (pour poisons et très toxiques)"]
["Présence de réfrigérateurs ou congélateurs sécurisés"]
["Dispositifs de fixation des bonbonnes de gaz "]
["Présence d'un kit d'intervention en cas d'épandage accidentel"]
[]
["EQUIPEMENTS DE PROTECTION INDIVIDUEL (EPI)"]
[null,"Types",null,"Précisions",null,"Maîtrise du risque","Plan d'actions"]
[null,null,null,null,null,null,"Actions","Priorité","Réalisateur(s)"]
["Types de gants utilisés"]
["Types de masques présents"]
["Présence de lunettes de sécurité/écran facial"]
["Types de blouse"]
["Port de surblouses ou de tenues spécifiques "]
["GESTION DES DECHETS CHIMIQUES"]
[null,"Oui ou non",null,"Précisions",null,"Maîtrise du risque","Plan d'actions"]
[null,null,null,null,null,null,"Actions","Priorité","Réalisateur(s)"]
["Gestion des déchets conforme à la réglementation"]

{"sheet":"Animal","index":10,"n_rows":78,"n_cols":8,"rows_kept":78,"cut":false,"hidden":true,"merged":[[64,1,65,1],[64,2,65,3],[64,4,65,4],[41,2,42,3],[33,74,34,74],[33,75,34,75],[33,76,34,76],[33,73,34,73],[27,1,28,1],[27,2,28,2],[27,3,28,3],[27,4,28,4],[0,0,0,7],[64,5,64,7],[71,5,71,7],[41,5,41,7],[52,5,52,7],[27,5,27,7],[3,2,3,4],[40,0,40,7],[41,4,42,4],[41,1,42,1],[71,1,72,1],[71,2,72,3],[71,4,72,4],[52,4,53,4],[63,0,63,7],[70,0,70,7],[9,0,9,7],[26,0,26,7],[21,0,21,7],[51,0,51,7],[52,1,53,1],[52,2,53,2],[52,3,53,3]]}
["EXPERIMENTATION ANIMALE  "]
[]
["Faites-vous de l'expérimentation animale ? "]
[null,"Oui ou non","Précisions éventuelles"]
["Animalerie propre à la formation"]
["Animalerie centrale ou commune avec un autre service"]
["Agrément de l'animalerie en cours de validité"]
[]
[]
["ANIMAUX UTILISES"]
[null,"Oui ou non","Nb de personnes exposées","Précisions éventuelles","Maîtrise du risque"]
["Rats ou souris"]
["Hamsters, cobayes"]
["Lagomorphes"]
["Chats"]
["Chiens"]
["Primates"]
["Batraciens, tortues ou poissons"]
["Insectes"]
["Reptiles"]
["Autres"]
["ANIMAUX OGM"]
[null,"Oui ou non","Nb de personnes exposées","Précisions éventuelles","Maîtrise du risque"]
["Projets de classe de confinement 1"]
["Projets de classe de confinement 2"]
["Projets de classe de confinement 3"]
["EXPERIMENTATIONS MENEES"]
[null,"Oui ou non","Nb de personnes exposées","Précisions éventuelles","Maîtrise du risque","Plan d'actions"]
[null,null,null,null,null,"Actions","Priorité","Réalisateur(s)"]
["Administration de substances"]
["Chirurgie"]
["Etude du comportement"]
["Prélèvements"]
["Injection de produit CMR"]
["Injection de microorganismes pathogènes"]
["Injections de cellules"]
["Injections de traceurs radioactifs"]
["Imagerie"]
["Autres expérimentations menées"]
[]
["LOCAUX "]
[null,"Oui ou non","Précisions éventuelles",null,"Maîtrise du risque","Plan d'actions"]
[null,null,null,null,null,"Actions","Priorité","Réalisateur(s)"]
["Animalerie conventionnelle"]
["Zone E.O.P.S."]
["Animalerie confinée"]
["Animalerie OGM "]
["Locaux en dépression"]
["Locaux en surpression"]
["Zones d'expérimentation et d'hébergement distinctes"]
["Présence d'un local avec douche pour le personnel"]
[" EQUIPEMENTS"]
[null,null,"Date du dernier contrôle ou maintenance selon équipement","Nombre de déclarés conformes","Maîtrise du risque","Plan d'actions"]
[null,null,null,null,null,"Actions","Priorité","Réalisateur(s)"]
["Présence d'isolateurs "]
["Hottes de change "]
["PSM"]
["ETRAF (hottes chimiques)"]
["Tables aspirantes"]
["Autoclave"]
["Installations pour anesthésie gazeuse"]
["Installations pour euthanasie CO2"]
["Autres équipements"]
["PERSONNEL"]
[null,"Nombre","Précisions éventuelles",null,"Maîtrise du risque","Plan d'actions"]
[null,null,null,null,null,"Actions","Priorité","Réalisateur(s)"]
["Nombre de titulaires de l'autorisation d'expérimenter"]
["Nombre de manipulateurs"]
["Nombre de personnels formés niveau 2"]
["Nombre de personnels formés niveau 3"]
["EQUIPEMENTS DE PROTECTION INDIVIDUELS (EPI)"]
[null,"Précisez","Précisions éventuelles",null,"Maîtrise du risque","Plan d'actions"]
[null,null,null,null,null,"Actions","Priorité","Réalisateur(s)"]
["Gants respectant la norme EN 374-2"]
["Masques FFP2 ou FFP3"]
["Utilisation de lunettes de sécurité/écran facial"]
["Blouses utilisées"]
["Surblouses ou tenues spécifiques utilisées"]

{"sheet":"physic","index":11,"n_rows":56,"n_cols":9,"rows_kept":56,"cut":false,"hidden":true,"merged":[[52,3,52,4],[14,7,16,7],[2,0,2,8],[3,0,3,1],[7,0,7,1],[14,8,16,8],[42,6,42,8],[9,5,11,5],[9,4,11,4],[7,6,7,8],[19,7,21,7],[19,8,21,8],[14,4,16,4],[14,5,16,5],[19,6,21,6],[9,6,11,6],[0,0,0,6],[3,6,3,8],[6,0,6,8],[3,3,3,4],[4,3,4,4],[5,3,5,4],[5,0,5,1],[4,0,4,1],[29,4,31,4],[29,5,31,5],[29,6,31,6],[29,7,31,7],[29,8,31,8],[19,4,21,4],[9,7,11,7],[9,8,11,8],[14,6,16,6],[24,4,26,4],[24,5,26,5],[19,5,21,5],[24,7,26,7],[24,8,26,8],[24,6,26,6],[51,6,51,8],[33,6,33,8],[32,0,32,8],[41,0,41,8],[50,0,50,8],[34,3,34,4],[43,3,43,4]]}
["RISQUES PHYSIQUES"]
[]
["GENERATEURS DE MICRO ONDES >300MHz"]
[null,null,"Oui ou non","Précisions éventuelles",null,null,"Plan d'actions"]
["Présence de four à micro-ondes ",null,null,null,null,null,"Actions","Priorité","Réalisateur(s)"]
["Consignes / Mesures de prévention"]
["GENERATEURS LASERS"]
[null,null,null,null,null,null,"Plan d'actions"]
["Appareil n °1 :","Classe","Date du dernier contrôle","Mesures de prévention adaptées à la classe du laser","Précisions","Maîtrise du risque","Actions","Priorité","Réalisateur(s)"]
[]
["Nom de l'appareil","EPI adaptés","Nb de personnes exposées","Locaux conformes"]
[]
[]
["Appareil n °2 :","Classe","Date du dernier contrôle","Mesures de prévention adaptées à la classe du laser","Précisions","Maîtrise du risque","Actions","Priorité","Réalisateur(s)"]
[]
["Nom de l'appareil","EPI adaptés","Nb de personnes exposées","Locaux conformes"]
[]
[]
["Appareil n °3 :","Classe","Date du dernier contrôle","Mesures de prévention adaptées à la classe du laser","Précisions","Maîtrise du risque","Actions","Priorité","Réalisateur(s)"]
[]
["Nom de l'appareil","EPI adaptés","Nb de personnes exposées","Locaux conformes"]
[]
[]
["Appareil n °4 :","Classe","Date du dernier contrôle","Mesures de prévention adaptées à la classe du laser","Précisions","Maîtrise du risque","Actions","Priorité","Réalisateur(s)"]
[]
["Nom de l'appareil","EPI adaptés","Nb de personnes exposées","Locaux conformes"]
[]
[]
["Appareil n °5 :","Classe","Date du dernier contrôle","Mesures de prévention adaptées à la classe du laser","Précisions","Maîtrise du risque","Actions","Priorité","Réalisateur(s)"]
[]
["Nom de l'appareil","EPI adaptés","Nb de personnes exposées","Locaux conformes"]
[]
["GENERATEURS D'ULTRA SONS >18000Hz"]
[null,null,null,null,null,null,"Plan d'actions"]
[null,"Renseignements divers","Nb de personnes exposées","Précisions",null,"Maîtrise du risque","Actions","Priorité","Réalisateur(s)"]
["Type d'appareil"]
["Fréquence en Hertz"]
["Présence de protections individuelles adaptées"]
["Date de contrôle de conformité des appareils"]
["Consignes de prévention affichées"]
[]
["CHAMPS MAGNETIQUES"]
[null,null,null,null,null,null,"Plan d'actions"]
[null,"Renseignements divers","Nb de personnes exposées","Précisions",null,"Maîtrise du risque","Actions","Priorité","Réalisateur(s)"]
["Précisez le type d'appareil"]
["Intensité du champ (en Tesla)"]
["Balisage/Consignes de sécurité"]
["Présence d'un périmètre de sécurité"]
["Présence de locaux adjacents concernés"]
["Date du dernier contrôle de l'appareil"]
["RAYONNEMENT ULTRA VIOLET"]
[null,null,null,null,null,null,"Plan d'actions"]
[null,"Renseignements divers","Nb de personnes exposées","Précisions",null,"Maîtrise du risque","Actions","Priorité","Réalisateur(s)"]
["Matériels utilisés"]
["Mesures de prévention"]
["Affichage de consignes de sécurité"]

{"sheet":"CdT","index":12,"n_rows":69,"n_cols":19,"rows_kept":69,"cut":false,"hidden":true,"merged":[[39,0,39,6],[43,0,43,6],[11,4,11,6],[16,4,16,6],[45,1,46,1],[45,2,46,2],[34,1,35,1],[21,1,22,1],[45,4,45,6],[21,2,22,2],[21,3,22,3],[40,1,41,1],[40,2,41,2],[40,3,41,3],[45,3,46,3],[33,0,33,6],[44,0,44,6],[21,4,21,6],[40,4,40,6],[34,2,35,2],[34,3,35,3],[34,4,34,6],[0,0,0,6],[2,0,2,6],[10,0,10,6],[15,0,15,6],[20,0,20,6],[11,1,12,1],[11,2,12,2],[16,3,17,3],[11,3,12,3],[3,4,3,6],[16,1,17,1],[16,2,17,2]]}
["CONDITIONS DE TRAVAIL"]
[]
["CONDITIONS MATERIELLES DE TRAVAIL"]
[null,null,null,null,"Plan d'actions",null,null,null,null,null,"< 120 Lux"]
[null,"Etat","Précisions","Maîtrise du risque","Actions","Priorité","Réalisateur(s)",null,"Urgent",null,"120 Lux"]
["Bien-être au travail"]
["Eclairage des lieux de travail",null,null,null,null,null,null,null,"Rapidement ",null,"< 200 Lux",null,null,"autres"]
["Confort thermique  ",null,null,null,null,null,null,null,"A surveiller",null,"200 Lux",null,null,"odeurs animaleries",null,null,null,"aucune"]
["Odeurs désagréables",null,null,null,null,null,null,null,null,null,null,"machines outil","oui <80dBA","produits volatils ","aucune",null,null,"occasionnelles"]
["Nuisances dues au bruit",null,null,null,null,null,null,null,"sorbonnes","aucune mesure","odeurs d'animalerie",2,null,"stérilisation ",null,null,null,"permanentes"]
["MANUTENTION"]
[null,"Choix","Type d'exposition et nombre de personnes concernées","Maîtrise du risque","Plan d'actions",null,null,null,null,null,null,"centrifugeuses",null,"pas de nuisance"]
[null,null,null,null,"Actions","Priorité","Réalisateur(s)",null,null,null,null,null,null,"plusieurs types"]
["Travaux nécessitant de la manutention",null,null,null,null,null,null,null,null,"conforme",null,"appareils divers"]
["Si oui charges manipulées",null,null,null,null,null,null,null,null,"non conforme",null,"climatisation"]
["TRAVAIL SUR ECRAN"]
[null,"Choix","Type d'exposition et nombre de personnes concernées","Maîtrise du risque","Plan d'actions",null,null,null,null,null,null,"autres"]
[null,null,null,null,"Actions","Priorité","Réalisateur(s)"]
["Travail sur écran ",null,null,null,null,null,null,null,null,null,null,"par ventilation générale",null,"occasionnelles"]
["Ergonomie du poste de travail"]
["ORGANISATION DU TRAVAIL"]
[null,"Oui ou non ","Nb de personnes concernées / Précisions","Maîtrise du risque","Plan d'actions",null,null,null,null,"bon",null,"aucune",null,"aucune "]
[null,null,null,null,"Actions","Priorité","Réalisateur(s)",null,null,"mauvais",null,"lumière naturelle"]
["Les questions relatives à la prévention des risques et les conditions de travail sont elles abordées ? "]
["Une procédure d'accueil générale à la sécurité est elle mise en place"]
["Une procédure de départ est elle mise en place ?"]
["Nécessité de travail en horaires décalés pour besoins de service",null,null,null,null,null,null,null,null,null,null,"lumière artificielle",null,"partielle"]
["Nécessité de travail en situation isolée ? (procédure en place pour limiter le risque)","Exceptionnellement",null,null,null,null,null,null,"adaptée",null,null,null,null,"totale"]
["Déplacements / Missions "]
["Utilisation véhicule de service"]
["Utilisation véhicule de fonction"]
["Utilisation véhicule personnel"]
[]
["ACCIDENTS DE TRAVAIL "]
[null,null,"Nb de personnes concernées / Précisions","Maîtrise du risque","Plan d'actions",null,null,null,"inadaptée","oui"]
[null,null,null,null,"Actions","Priorité","Réalisateur(s)"]
["Présence d'une armoire à pharmacie dont le contenu est validé par la médecine de prévention"]
["Nombre d'accidents de travail dans l'année",null,null,null,null,null,null,null,null,"non",null,"<18°C",null,null,null,null,null,null,"Maîtrisé"]
["Nombre d'exercice du droit de retrait dans l'année",null,null,null,null,null,null,null,null,null,null,">22°C",null,"casque",null,null,null,null,"A maîtriser"]
["SUIVI MEDICAL"]
[null,null,"Nb de personnes concernées / Précisions","Maîtrise du risque","Plan d'actions"]
[null,null,null,null,"Actions","Priorité","Réalisateur(s)",null,null,null,null,null,null,"aucun"]
["Nombre de personnes ayant eu une visite médicale dans l'année",null,null,null,null,null,null,null,null,null,null,null,null,"après 19h30"]
[]
["FORMATION DES PERSONNELS"]
[null,null,"Précisions","Maîtrise du risque","Plan d'actions"]
[null,null,null,null,"Actions","Priorité","Réalisateur(s)",null,null,null,null,"2 heures",null,"avant 7h30",null,null,null,"Oui"]
["Date de la formation continue des assistants prévention",null,null,null,null,null,null,null,null,null,null,"3 heures",null,"aucune nécessité",null,null,null,"Non "]
["Nombre de personnes ayant suivi dans l'année la formation ou mise à niveau SST ou PSC1",null,null,null,null,null,null,null,null,null,null,"4 heures",null,"avant 7:30 et après 19:30",null,null,null,"Sans objet"]
["Nombre de personnes ayant suivi dans l'année la formation des nouveaux entrants",null,null,null,null,null,null,null,null,null,null,"5 heures",null,"oui du fait des horaires"]
["Nombre de personnes ayant suivi dans l'année la formation des nouveaux recrutés",null,"Nature de la (des) formation(s)"]
["Nombre de personnes ayant suivi dans l'année une formation obligatoire adaptée aux risques ",null,null,null,null,null,null,null,null,null,null,"7 heures"]
["Formation - Information risques psychosociaux",null,null,null,null,null,null,null,null,null,null,"oui",null,"fréquemment"]
[null,null,null,null,null,null,null,null,null,null,null,"non",null,"occasionnellement"]
[null,null,null,null,null,null,null,null,null,null,null,null,null,"jamais"]
[null,null,null,null,null,null,null,null,null,null,null,"conforme"]
[null,null,null,null,null,null,null,null,null,null,null,"non conforme",null,"très satisfaisantes"]
[null,null,null,null,null,null,null,null,null,null,null,null,null,"satisfaisantes"]
[null,null,null,null,null,null,null,null,null,null,null,">10Kg",null,"moyennes"]
[null,null,null,null,null,null,null,null,null,null,null,">20Kg",null,"peu satisfaisantes"]
[null,null,null,null,null,null,null,null,null,null,null,">30Kg",null,"agréable "]
[null,null,null,null,null,null,null,null,null,null,null,null,null,"moyenne"]
[null,null,null,null,null,null,null,null,null,null,null,null,null,"stressante"]
[]
[null,null,null,null,null,null,null,null,null,null,null,null,null,"étudiants"]
[null,null,null,null,null,null,null,null,null,null,null,null,null,"stagiaires"]
[null,null,null,null,null,null,null,null,null,null,null,null,null,"boursiers"]
[null,null,null,null,null,null,null,null,null,null,null,null,null,"hors statut"]
[null,null,null,null,null,null,null,null,null,null,null,null,null,"autre"]

{"sheet":"Eval specifique","index":13,"n_rows":3,"n_cols":7,"rows_kept":3,"cut":false,"hidden":true,"merged":[[2,1,2,2],[1,1,1,2],[0,0,0,5],[18,1,18,2],[17,1,17,2],[16,1,16,2],[11,1,11,2],[12,1,12,2],[14,1,14,2],[15,1,15,2],[13,1,13,2],[1,0,2,0],[1,3,2,3],[1,4,1,6],[4,1,4,2],[5,1,5,2],[3,1,3,2],[7,1,7,2],[6,1,6,2],[10,1,10,2],[8,1,8,2],[9,1,9,2]]}
["Analyse d'une situation de travail particulière \nnon répertoriable (Optionnel)"]
["Localisation /\nsource de danger","Description de la maîtrise actuelle du risque :",null,"Statut actuel  de la maîtrise du risque","Plan d'actions visant à améliorer la prévention"]
[null," - Organisationnelle (convention, procédures, signalétique, EPI à disposition….)\n - Technique (matériel, locaux, EPC, arrêt d'urgence, ventilation, filtration…)\n - Humaine (formation, qualification, information du personnel...)",null,null,"Action (s)                                ","Priorité      ","Réalisateur(s)"]

{"sheet":"Plan dactions","index":14,"n_rows":291,"n_cols":7,"rows_kept":291,"cut":false,"hidden":true,"merged":[[290,1,290,2],[288,0,288,4]]}
[]
[null,null,null,"Programme annuel de prévention (plan d'actions)"]
[]
[null,null,"Année:",{"$f":"Accueil!I2","v":2019}]
[]
["Origine action","Actions","Priorité","Réalisateur(s)","Avancement / Commentaires sur l'action","Date de réalisation","Ligne"]
["Locaux et issues",{"$f":"Locaux!E11","v":0},{"$f":"Locaux!F11","v":0},{"$f":"Locaux!G11","v":0},null,null,1]
["Locaux et issues",{"$f":"Locaux!E12","v":0},{"$f":"Locaux!F12","v":0},{"$f":"Locaux!G12","v":0},null,null,2]
["Locaux et issues",{"$f":"Locaux!E13","v":0},{"$f":"Locaux!F13","v":0},{"$f":"Locaux!G13","v":0},null,null,3]
["Locaux et issues",{"$f":"Locaux!E14","v":0},{"$f":"Locaux!F14","v":0},{"$f":"Locaux!G14","v":0},null,null,4]
["Locaux et issues",{"$f":"Locaux!E15","v":0},{"$f":"Locaux!F15","v":0},{"$f":"Locaux!G15","v":0},null,null,5]
["Locaux et issues",{"$f":"Locaux!E16","v":0},{"$f":"Locaux!F16","v":0},{"$f":"Locaux!G16","v":0},null,null,6]
["Locaux et issues",{"$f":"Locaux!E17","v":0},{"$f":"Locaux!F17","v":0},{"$f":"Locaux!G17","v":0},null,null,7]
["Locaux et issues",{"$f":"Locaux!E21","v":0},{"$f":"Locaux!F21","v":0},{"$f":"Locaux!G21","v":0},null,null,8]
["Locaux et issues",{"$f":"Locaux!E26","v":0},{"$f":"Locaux!F26","v":0},{"$f":"Locaux!G26","v":0},null,null,9]
["Locaux et issues",{"$f":"Locaux!E27","v":0},{"$f":"Locaux!F27","v":0},{"$f":"Locaux!G27","v":0},null,null,10]
["Locaux et issues",{"$f":"Locaux!E28","v":0},{"$f":"Locaux!F28","v":0},{"$f":"Locaux!G28","v":0},null,null,11]
["Locaux et issues",{"$f":"Locaux!E29","v":0},{"$f":"Locaux!F29","v":0},{"$f":"Locaux!G29","v":0},null,null,12]
["Locaux et issues",{"$f":"Locaux!E30","v":0},{"$f":"Locaux!F30","v":0},{"$f":"Locaux!G30","v":0},null,null,13]
["Locaux et issues",{"$f":"Locaux!E31","v":0},{"$f":"Locaux!F31","v":0},{"$f":"Locaux!G31","v":0},null,null,14]
["Locaux et issues",{"$f":"Locaux!E32","v":0},{"$f":"Locaux!F32","v":0},{"$f":"Locaux!G32","v":0},null,null,15]
["Locaux et issues",{"$f":"Locaux!E33","v":0},{"$f":"Locaux!F33","v":0},{"$f":"Locaux!G33","v":0},null,null,16]
["Locaux et issues",{"$f":"Locaux!E34","v":0},{"$f":"Locaux!F34","v":0},{"$f":"Locaux!G34","v":0},null,null,17]
["Locaux et issues",{"$f":"Locaux!E35","v":0},{"$f":"Locaux!F35","v":0},{"$f":"Locaux!G35","v":0},null,null,18]
["Locaux et issues",{"$f":"Locaux!E36","v":0},{"$f":"Locaux!F36","v":0},{"$f":"Locaux!G36","v":0},null,null,19]
["Locaux et issues",{"$f":"Locaux!E40","v":0},{"$f":"Locaux!F40","v":0},{"$f":"Locaux!G40","v":0},null,null,20]
["Locaux et issues",{"$f":"Locaux!E41","v":0},{"$f":"Locaux!F41","v":0},{"$f":"Locaux!G41","v":0},null,null,21]
["Locaux et issues",{"$f":"Locaux!E42","v":0},{"$f":"Locaux!F42","v":0},{"$f":"Locaux!G42","v":0},null,null,22]
["Locaux et issues",{"$f":"Locaux!E43","v":0},{"$f":"Locaux!F43","v":0},{"$f":"Locaux!G43","v":0},null,null,23]
["Locaux et issues",{"$f":"Locaux!E44","v":0},{"$f":"Locaux!F44","v":0},{"$f":"Locaux!G44","v":0},null,null,24]
["Locaux et issues",{"$f":"Locaux!E45","v":0},{"$f":"Locaux!F45","v":0},{"$f":"Locaux!G45","v":0},null,null,25]
["Locaux et issues",{"$f":"Locaux!E49","v":0},{"$f":"Locaux!F49","v":0},{"$f":"Locaux!G49","v":0},null,null,26]
["Locaux et issues",{"$f":"Locaux!E50","v":0},{"$f":"Locaux!F50","v":0},{"$f":"Locaux!G50","v":0},null,null,27]
["Incendie",{"$f":"Incendie!F6","v":0},{"$f":"Incendie!G6","v":0},{"$f":"Incendie!H6","v":0},null,null,28]
["Incendie",{"$f":"Incendie!F7","v":0},{"$f":"Incendie!G7","v":0},{"$f":"Incendie!H7","v":0},null,null,29]
["Incendie",{"$f":"Incendie!F8","v":0},{"$f":"Incendie!G8","v":0},{"$f":"Incendie!H8","v":0},null,null,30]
["Incendie",{"$f":"Incendie!F9","v":0},{"$f":"Incendie!G9","v":0},{"$f":"Incendie!H9","v":0},null,null,31]
["Incendie",{"$f":"Incendie!F10","v":0},{"$f":"Incendie!G10","v":0},{"$f":"Incendie!H10","v":0},null,null,32]
["Incendie",{"$f":"Incendie!F11","v":0},{"$f":"Incendie!G11","v":0},{"$f":"Incendie!H11","v":0},null,null,33]
["Incendie",{"$f":"Incendie!F12","v":0},{"$f":"Incendie!G12","v":0},{"$f":"Incendie!H12","v":0},null,null,34]
["Incendie",{"$f":"Incendie!F13","v":0},{"$f":"Incendie!G13","v":0},{"$f":"Incendie!H13","v":0},null,null,35]
["Incendie",{"$f":"Incendie!F17","v":0},{"$f":"Incendie!G17","v":0},{"$f":"Incendie!H17","v":0},null,null,36]
["Incendie",{"$f":"Incendie!F18","v":0},{"$f":"Incendie!G18","v":0},{"$f":"Incendie!H18","v":0},null,null,37]
["Incendie",{"$f":"Incendie!F19","v":0},{"$f":"Incendie!G19","v":0},{"$f":"Incendie!H19","v":0},null,null,38]
["Incendie",{"$f":"Incendie!F20","v":0},{"$f":"Incendie!G20","v":0},{"$f":"Incendie!H20","v":0},null,null,39]
["Incendie",{"$f":"Incendie!F21","v":0},{"$f":"Incendie!G21","v":0},{"$f":"Incendie!H21","v":0},null,null,40]
["Incendie",{"$f":"Incendie!F22","v":0},{"$f":"Incendie!G22","v":0},{"$f":"Incendie!H22","v":0},null,null,41]
["Incendie",{"$f":"Incendie!F26","v":0},{"$f":"Incendie!G26","v":0},{"$f":"Incendie!H26","v":0},null,null,42]
["Incendie",{"$f":"Incendie!F27","v":0},{"$f":"Incendie!G27","v":0},{"$f":"Incendie!H27","v":0},null,null,43]
["Incendie",{"$f":"Incendie!F28","v":0},{"$f":"Incendie!G28","v":0},{"$f":"Incendie!H28","v":0},null,null,44]
["Incendie",{"$f":"Incendie!F32","v":0},{"$f":"Incendie!G32","v":0},{"$f":"Incendie!H32","v":0},null,null,45]
["Incendie",{"$f":"Incendie!F33","v":0},{"$f":"Incendie!G33","v":0},{"$f":"Incendie!H33","v":0},null,null,46]
["Incendie",{"$f":"Incendie!F34","v":0},{"$f":"Incendie!G34","v":0},{"$f":"Incendie!H34","v":0},null,null,47]
["Incendie",{"$f":"Incendie!F35","v":0},{"$f":"Incendie!G35","v":0},{"$f":"Incendie!H35","v":0},null,null,48]
["Incendie",{"$f":"Incendie!F36","v":0},{"$f":"Incendie!G36","v":0},{"$f":"Incendie!H36","v":0},null,null,49]
["Incendie",{"$f":"Incendie!F37","v":0},{"$f":"Incendie!G37","v":0},{"$f":"Incendie!H37","v":0},null,null,50]
["Incendie",{"$f":"Incendie!F38","v":0},{"$f":"Incendie!G38","v":0},{"$f":"Incendie!H38","v":0},null,null,51]
["Incendie",{"$f":"Incendie!F39","v":0},{"$f":"Incendie!G39","v":0},{"$f":"Incendie!H39","v":0},null,null,52]
["Incendie",{"$f":"Incendie!F40","v":0},{"$f":"Incendie!G40","v":0},{"$f":"Incendie!H40","v":0},null,null,53]
["Incendie",{"$f":"Incendie!F41","v":0},{"$f":"Incendie!G41","v":0},{"$f":"Incendie!H41","v":0},null,null,54]
["Incendie",{"$f":"Incendie!F42","v":0},{"$f":"Incendie!G42","v":0},{"$f":"Incendie!H42","v":0},null,null,55]
["Incendie",{"$f":"Incendie!F43","v":0},{"$f":"Incendie!G43","v":0},{"$f":"Incendie!H43","v":0},null,null,56]
["Electricité",{"$f":"Electricite!E6","v":0},{"$f":"Electricite!F6","v":0},{"$f":"Electricite!G6","v":0},null,null,57]
["Electricité",{"$f":"Electricite!E10","v":0},{"$f":"Electricite!F10","v":0},{"$f":"Electricite!G10","v":0},null,null,58]
["Electricité",{"$f":"Electricite!E11","v":0},{"$f":"Electricite!F11","v":0},{"$f":"Electricite!G11","v":0},null,null,59]
["Electricité",{"$f":"Electricite!E15","v":0},{"$f":"Electricite!F15","v":0},{"$f":"Electricite!G15","v":0},null,null,60]
["Electricité",{"$f":"Electricite!E16","v":0},{"$f":"Electricite!F16","v":0},{"$f":"Electricite!G16","v":0},null,null,61]
["Electricité",{"$f":"Electricite!E20","v":0},{"$f":"Electricite!F20","v":0},{"$f":"Electricite!G20","v":0},null,null,62]
["Electricité",{"$f":"Electricite!E21","v":0},{"$f":"Electricite!F21","v":0},{"$f":"Electricite!G21","v":0},null,null,63]
["Electricité",{"$f":"Electricite!E22","v":0},{"$f":"Electricite!F22","v":0},{"$f":"Electricite!G22","v":0},null,null,64]
["Electricité",{"$f":"Electricite!E23","v":0},{"$f":"Electricite!F23","v":0},{"$f":"Electricite!G23","v":0},null,null,65]
["Electricité",{"$f":"Electricite!E27","v":0},{"$f":"Electricite!F27","v":0},{"$f":"Electricite!G27","v":0},null,null,66]
["Electricité",{"$f":"Electricite!E28","v":0},{"$f":"Electricite!F28","v":0},{"$f":"Electricite!G28","v":0},null,null,67]
["Electricité",{"$f":"Electricite!E29","v":0},{"$f":"Electricite!F29","v":0},{"$f":"Electricite!G29","v":0},null,null,68]
["Electricité",{"$f":"Electricite!E32","v":0},{"$f":"Electricite!F32","v":0},{"$f":"Electricite!G32","v":0},null,null,69]
["Biologie",{"$f":"Biologie!H6","v":0},{"$f":"Biologie!I6","v":0},{"$f":"Biologie!J6","v":0},null,null,70]
["Biologie",{"$f":"Biologie!H7","v":0},{"$f":"Biologie!I7","v":0},{"$f":"Biologie!J7","v":0},null,null,71]
["Biologie",{"$f":"Biologie!H8","v":0},{"$f":"Biologie!I8","v":0},{"$f":"Biologie!J8","v":0},null,null,72]
["Biologie",{"$f":"Biologie!H9","v":0},{"$f":"Biologie!I9","v":0},{"$f":"Biologie!J9","v":0},null,null,73]
["Biologie",{"$f":"Biologie!H10","v":0},{"$f":"Biologie!I10","v":0},{"$f":"Biologie!J10","v":0},null,null,74]
["Biologie",{"$f":"Biologie!H11","v":0},{"$f":"Biologie!I11","v":0},{"$f":"Biologie!J11","v":0},null,null,75]
["Biologie",{"$f":"Biologie!H12","v":0},{"$f":"Biologie!I12","v":0},{"$f":"Biologie!J12","v":0},null,null,76]
["Biologie",{"$f":"Biologie!H16","v":0},{"$f":"Biologie!I16","v":0},{"$f":"Biologie!J16","v":0},null,null,77]
["Biologie",{"$f":"Biologie!H17","v":0},{"$f":"Biologie!I17","v":0},{"$f":"Biologie!J17","v":0},null,null,78]
["Biologie",{"$f":"Biologie!H18","v":0},{"$f":"Biologie!I18","v":0},{"$f":"Biologie!J18","v":0},null,null,79]
["Biologie",{"$f":"Biologie!H19","v":0},{"$f":"Biologie!I19","v":0},{"$f":"Biologie!J19","v":0},null,null,80]
["Biologie",{"$f":"Biologie!H20","v":0},{"$f":"Biologie!I20","v":0},{"$f":"Biologie!J20","v":0},null,null,81]
["Biologie",{"$f":"Biologie!H24","v":0},{"$f":"Biologie!I24","v":0},{"$f":"Biologie!J24","v":0},null,null,82]
["Biologie",{"$f":"Biologie!H25","v":0},{"$f":"Biologie!I25","v":0},{"$f":"Biologie!J25","v":0},null,null,83]
["Biologie",{"$f":"Biologie!H26","v":0},{"$f":"Biologie!I26","v":0},{"$f":"Biologie!J26","v":0},null,null,84]
["Biologie",{"$f":"Biologie!H28","v":0},{"$f":"Biologie!I28","v":0},{"$f":"Biologie!J28","v":0},null,null,85]
["Biologie",{"$f":"Biologie!H29","v":0},{"$f":"Biologie!I29","v":0},{"$f":"Biologie!J29","v":0},null,null,86]
["Biologie",{"$f":"Biologie!H30","v":0},{"$f":"Biologie!I30","v":0},{"$f":"Biologie!J30","v":0},null,null,87]
["Biologie",{"$f":"Biologie!H32","v":0},{"$f":"Biologie!I32","v":0},{"$f":"Biologie!J32","v":0},null,null,88]
["Biologie",{"$f":"Biologie!H33","v":0},{"$f":"Biologie!I33","v":0},{"$f":"Biologie!J33","v":0},null,null,89]
["Biologie",{"$f":"Biologie!H34","v":0},{"$f":"Biologie!I34","v":0},{"$f":"Biologie!J34","v":0},null,null,90]
["Biologie",{"$f":"Biologie!H36","v":0},{"$f":"Biologie!I36","v":0},{"$f":"Biologie!J36","v":0},null,null,91]
["Biologie",{"$f":"Biologie!H37","v":0},{"$f":"Biologie!I37","v":0},{"$f":"Biologie!J37","v":0},null,null,92]
["Biologie",{"$f":"Biologie!H38","v":0},{"$f":"Biologie!I38","v":0},{"$f":"Biologie!J38","v":0},null,null,93]
["Biologie",{"$f":"Biologie!H41","v":0},{"$f":"Biologie!I41","v":0},{"$f":"Biologie!J41","v":0},null,null,94]
["Biologie",{"$f":"Biologie!H42","v":0},{"$f":"Biologie!I42","v":0},{"$f":"Biologie!J42","v":0},null,null,95]
["Biologie",{"$f":"Biologie!H45","v":0},{"$f":"Biologie!I45","v":0},{"$f":"Biologie!J45","v":0},null,null,96]
["Biologie",{"$f":"Biologie!H46","v":0},{"$f":"Biologie!I46","v":0},{"$f":"Biologie!J46","v":0},null,null,97]
["Biologie",{"$f":"Biologie!H50","v":0},{"$f":"Biologie!I50","v":0},{"$f":"Biologie!J50","v":0},null,null,98]
["Biologie",{"$f":"Biologie!H51","v":0},{"$f":"Biologie!I51","v":0},{"$f":"Biologie!J51","v":0},null,null,99]
["Biologie",{"$f":"Biologie!H56","v":0},{"$f":"Biologie!I56","v":0},{"$f":"Biologie!J56","v":0},null,null,100]
["Biologie",{"$f":"Biologie!H57","v":0},{"$f":"Biologie!I57","v":0},{"$f":"Biologie!J57","v":0},null,null,101]
["Biologie",{"$f":"Biologie!H58","v":0},{"$f":"Biologie!I58","v":0},{"$f":"Biologie!J58","v":0},null,null,102]
["Biologie",{"$f":"Biologie!H62","v":0},{"$f":"Biologie!I62","v":0},{"$f":"Biologie!J62","v":0},null,null,103]
["Biologie",{"$f":"Biologie!H63","v":0},{"$f":"Biologie!I63","v":0},{"$f":"Biologie!J63","v":0},null,null,104]
["Biologie",{"$f":"Biologie!H64","v":0},{"$f":"Biologie!I64","v":0},{"$f":"Biologie!J64","v":0},null,null,105]
["Biologie",{"$f":"Biologie!H65","v":0},{"$f":"Biologie!I65","v":0},{"$f":"Biologie!J65","v":0},null,null,106]
["Biologie",{"$f":"Biologie!H69","v":0},{"$f":"Biologie!I69","v":0},{"$f":"Biologie!J69","v":0},null,null,107]
["Biologie",{"$f":"Biologie!H70","v":0},{"$f":"Biologie!I70","v":0},{"$f":"Biologie!J70","v":0},null,null,108]
["Biologie",{"$f":"Biologie!H71","v":0},{"$f":"Biologie!I71","v":0},{"$f":"Biologie!J71","v":0},null,null,109]
["Biologie",{"$f":"Biologie!H72","v":0},{"$f":"Biologie!I72","v":0},{"$f":"Biologie!J72","v":0},null,null,110]
["Biologie",{"$f":"Biologie!H76","v":0},{"$f":"Biologie!I76","v":0},{"$f":"Biologie!J76","v":0},null,null,111]
["Biologie",{"$f":"Biologie!H77","v":0},{"$f":"Biologie!I77","v":0},{"$f":"Biologie!J77","v":0},null,null,112]
["Biologie",{"$f":"Biologie!H78","v":0},{"$f":"Biologie!I78","v":0},{"$f":"Biologie!J78","v":0},null,null,113]
["Biologie",{"$f":"Biologie!H82","v":0},{"$f":"Biologie!I82","v":0},{"$f":"Biologie!J82","v":0},null,null,114]
["Biologie",{"$f":"Biologie!H83","v":0},{"$f":"Biologie!I83","v":0},{"$f":"Biologie!J83","v":0},null,null,115]
["Biologie",{"$f":"Biologie!H84","v":0},{"$f":"Biologie!I84","v":0},{"$f":"Biologie!J84","v":0},null,null,116]
["Biologie",{"$f":"Biologie!H85","v":0},{"$f":"Biologie!I85","v":0},{"$f":"Biologie!J85","v":0},null,null,117]
["Biologie",{"$f":"Biologie!H86","v":0},{"$f":"Biologie!I86","v":0},{"$f":"Biologie!J86","v":0},null,null,118]
["Biologie",{"$f":"Biologie!H90","v":0},{"$f":"Biologie!I90","v":0},{"$f":"Biologie!J90","v":0},null,null,119]
["Radioactif",{"$f":"Radioactif!F6","v":0},{"$f":"Radioactif!G6","v":0},{"$f":"Radioactif!H6","v":0},null,null,120]
["Radioactif",{"$f":"Radioactif!F7","v":0},{"$f":"Radioactif!G7","v":0},{"$f":"Radioactif!H7","v":0},null,null,121]
["Radioactif",{"$f":"Radioactif!F8","v":0},{"$f":"Radioactif!G8","v":0},{"$f":"Radioactif!H8","v":0},null,null,122]
["Radioactif",{"$f":"Radioactif!F9","v":0},{"$f":"Radioactif!G9","v":0},{"$f":"Radioactif!H9","v":0},null,null,123]
["Radioactif",{"$f":"Radioactif!F28","v":0},{"$f":"Radioactif!G28","v":0},{"$f":"Radioactif!H28","v":0},null,null,124]
["Radioactif",{"$f":"Radioactif!F29","v":0},{"$f":"Radioactif!G29","v":0},{"$f":"Radioactif!H29","v":0},null,null,125]
["Radioactif",{"$f":"Radioactif!F33","v":0},{"$f":"Radioactif!G33","v":0},{"$f":"Radioactif!H33","v":0},null,null,126]
["Radioactif",{"$f":"Radioactif!F34","v":0},{"$f":"Radioactif!G34","v":0},{"$f":"Radioactif!H34","v":0},null,null,127]
["Radioactif",{"$f":"Radioactif!F35","v":0},{"$f":"Radioactif!G35","v":0},{"$f":"Radioactif!H35","v":0},null,null,128]
["Radioactif",{"$f":"Radioactif!F39","v":0},{"$f":"Radioactif!G39","v":0},{"$f":"Radioactif!H39","v":0},null,null,129]
["Radioactif",{"$f":"Radioactif!F40","v":0},{"$f":"Radioactif!G40","v":0},{"$f":"Radioactif!H40","v":0},null,null,130]
["Radioactif",{"$f":"Radioactif!F41","v":0},{"$f":"Radioactif!G41","v":0},{"$f":"Radioactif!H41","v":0},null,null,131]
["Radioactif",{"$f":"Radioactif!F42","v":0},{"$f":"Radioactif!G42","v":0},{"$f":"Radioactif!H42","v":0},null,null,132]
["Radioactif",{"$f":"Radioactif!F43","v":0},{"$f":"Radioactif!G43","v":0},{"$f":"Radioactif!H43","v":0},null,null,133]
["Radioactif",{"$f":"Radioactif!F47","v":0},{"$f":"Radioactif!G47","v":0},{"$f":"Radioactif!H47","v":0},null,null,134]
["Radioactif",{"$f":"Radioactif!F48","v":0},{"$f":"Radioactif!G48","v":0},{"$f":"Radioactif!H48","v":0},null,null,135]
["Radioactif",{"$f":"Radioactif!F49","v":0},{"$f":"Radioactif!G49","v":0},{"$f":"Radioactif!H49","v":0},null,null,136]
["Radioactif",{"$f":"Radioactif!F50","v":0},{"$f":"Radioactif!G50","v":0},{"$f":"Radioactif!H50","v":0},null,null,137]
["Radioactif",{"$f":"Radioactif!F55","v":0},{"$f":"Radioactif!G55","v":0},{"$f":"Radioactif!H55","v":0},null,null,138]
["Radioactif",{"$f":"Radioactif!F56","v":0},{"$f":"Radioactif!G56","v":0},{"$f":"Radioactif!H56","v":0},null,null,139]
["Radioactif",{"$f":"Radioactif!F57","v":0},{"$f":"Radioactif!G57","v":0},{"$f":"Radioactif!H57","v":0},null,null,140]
["Radioactif",{"$f":"Radioactif!F58","v":0},{"$f":"Radioactif!G58","v":0},{"$f":"Radioactif!H58","v":0},null,null,141]
["Radioactif",{"$f":"Radioactif!F59","v":0},{"$f":"Radioactif!G59","v":0},{"$f":"Radioactif!H59","v":0},null,null,142]
["Radioactif",{"$f":"Radioactif!F60","v":0},{"$f":"Radioactif!G60","v":0},{"$f":"Radioactif!H60","v":0},null,null,143]
["Radioactif",{"$f":"Radioactif!F64","v":0},{"$f":"Radioactif!G64","v":0},{"$f":"Radioactif!H64","v":0},null,null,144]
["Radioactif",{"$f":"Radioactif!F65","v":0},{"$f":"Radioactif!G65","v":0},{"$f":"Radioactif!H65","v":0},null,null,145]
["Radioactif",{"$f":"Radioactif!F66","v":0},{"$f":"Radioactif!G66","v":0},{"$f":"Radioactif!H66","v":0},null,null,146]
["Radioactif",{"$f":"Radioactif!F70","v":0},{"$f":"Radioactif!G70","v":0},{"$f":"Radioactif!H70","v":0},null,null,147]
["Chimie",{"$f":"Chimie!G6","v":0},{"$f":"Chimie!H6","v":0},{"$f":"Chimie!I6","v":0},null,null,148]
["Chimie",{"$f":"Chimie!G7","v":0},{"$f":"Chimie!H7","v":0},{"$f":"Chimie!I7","v":0},null,null,149]
["Chimie",{"$f":"Chimie!G8","v":0},{"$f":"Chimie!H8","v":0},{"$f":"Chimie!I8","v":0},null,null,150]
["Chimie",{"$f":"Chimie!G12","v":0},{"$f":"Chimie!H12","v":0},{"$f":"Chimie!I12","v":0},null,null,151]
["Chimie",{"$f":"Chimie!G13","v":0},{"$f":"Chimie!H13","v":0},{"$f":"Chimie!I13","v":0},null,null,152]
["Chimie",{"$f":"Chimie!G14","v":0},{"$f":"Chimie!H14","v":0},{"$f":"Chimie!I14","v":0},null,null,153]
["Chimie",{"$f":"Chimie!G15","v":0},{"$f":"Chimie!H15","v":0},{"$f":"Chimie!I15","v":0},null,null,154]
["Chimie",{"$f":"Chimie!G16","v":0},{"$f":"Chimie!H16","v":0},{"$f":"Chimie!I16","v":0},null,null,155]
["Chimie",{"$f":"Chimie!G17","v":0},{"$f":"Chimie!H17","v":0},{"$f":"Chimie!I17","v":0},null,null,156]
["Chimie",{"$f":"Chimie!G18","v":0},{"$f":"Chimie!H18","v":0},{"$f":"Chimie!I18","v":0},null,null,157]
["Chimie",{"$f":"Chimie!G19","v":0},{"$f":"Chimie!H19","v":0},{"$f":"Chimie!I19","v":0},null,null,158]
["Chimie",{"$f":"Chimie!G20","v":0},{"$f":"Chimie!H20","v":0},{"$f":"Chimie!I20","v":0},null,null,159]
["Chimie",{"$f":"Chimie!G24","v":0},{"$f":"Chimie!H24","v":0},{"$f":"Chimie!I24","v":0},null,null,160]
["Chimie",{"$f":"Chimie!G25","v":0},{"$f":"Chimie!H25","v":0},{"$f":"Chimie!I25","v":0},null,null,161]
["Chimie",{"$f":"Chimie!G26","v":0},{"$f":"Chimie!H26","v":0},{"$f":"Chimie!I26","v":0},null,null,162]
["Chimie",{"$f":"Chimie!G27","v":0},{"$f":"Chimie!H27","v":0},{"$f":"Chimie!I27","v":0},null,null,163]
["Chimie",{"$f":"Chimie!G31","v":0},{"$f":"Chimie!H31","v":0},{"$f":"Chimie!I31","v":0},null,null,164]
["Chimie",{"$f":"Chimie!G32","v":0},{"$f":"Chimie!H32","v":0},{"$f":"Chimie!I32","v":0},null,null,165]
["Chimie",{"$f":"Chimie!G33","v":0},{"$f":"Chimie!H33","v":0},{"$f":"Chimie!I33","v":0},null,null,166]
["Chimie",{"$f":"Chimie!G34","v":0},{"$f":"Chimie!H34","v":0},{"$f":"Chimie!I34","v":0},null,null,167]
["Chimie",{"$f":"Chimie!G38","v":0},{"$f":"Chimie!H38","v":0},{"$f":"Chimie!I38","v":0},null,null,168]
["Chimie",{"$f":"Chimie!G39","v":0},{"$f":"Chimie!H39","v":0},{"$f":"Chimie!I39","v":0},null,null,169]
["Chimie",{"$f":"Chimie!G40","v":0},{"$f":"Chimie!H40","v":0},{"$f":"Chimie!I40","v":0},null,null,170]
["Chimie",{"$f":"Chimie!G42","v":0},{"$f":"Chimie!H42","v":0},{"$f":"Chimie!I42","v":0},null,null,171]
["Chimie",{"$f":"Chimie!G43","v":0},{"$f":"Chimie!H43","v":0},{"$f":"Chimie!I43","v":0},null,null,172]
["Chimie",{"$f":"Chimie!G44","v":0},{"$f":"Chimie!H44","v":0},{"$f":"Chimie!I44","v":0},null,null,173]
["Chimie",{"$f":"Chimie!G45","v":0},{"$f":"Chimie!H45","v":0},{"$f":"Chimie!I45","v":0},null,null,174]
["Chimie",{"$f":"Chimie!G46","v":0},{"$f":"Chimie!H46","v":0},{"$f":"Chimie!I46","v":0},null,null,175]
["Chimie",{"$f":"Chimie!G51","v":0},{"$f":"Chimie!H51","v":0},{"$f":"Chimie!I51","v":0},null,null,176]
["Chimie",{"$f":"Chimie!G52","v":0},{"$f":"Chimie!H52","v":0},{"$f":"Chimie!I52","v":0},null,null,177]
["Chimie",{"$f":"Chimie!G53","v":0},{"$f":"Chimie!H53","v":0},{"$f":"Chimie!I53","v":0},null,null,178]
["Chimie",{"$f":"Chimie!G54","v":0},{"$f":"Chimie!H54","v":0},{"$f":"Chimie!I54","v":0},null,null,179]
["Chimie",{"$f":"Chimie!G55","v":0},{"$f":"Chimie!H55","v":0},{"$f":"Chimie!I55","v":0},null,null,180]
["Chimie",{"$f":"Chimie!G59","v":0},{"$f":"Chimie!H59","v":0},{"$f":"Chimie!I59","v":0},null,null,181]
["Animal",{"$f":"Animal!F30","v":0},{"$f":"Animal!G30","v":0},{"$f":"Animal!H30","v":0},null,null,182]
["Animal",{"$f":"Animal!F31","v":0},{"$f":"Animal!G31","v":0},{"$f":"Animal!H31","v":0},null,null,183]
["Animal",{"$f":"Animal!F32","v":0},{"$f":"Animal!G32","v":0},{"$f":"Animal!H32","v":0},null,null,184]
["Animal",{"$f":"Animal!F33","v":0},{"$f":"Animal!G33","v":0},{"$f":"Animal!H33","v":0},null,null,185]
["Animal",{"$f":"Animal!F34","v":0},{"$f":"Animal!G34","v":0},{"$f":"Animal!H34","v":0},null,null,186]
["Animal",{"$f":"Animal!F35","v":0},{"$f":"Animal!G35","v":0},{"$f":"Animal!H35","v":0},null,null,187]
["Animal",{"$f":"Animal!F36","v":0},{"$f":"Animal!G36","v":0},{"$f":"Animal!H36","v":0},null,null,188]
["Animal",{"$f":"Animal!F37","v":0},{"$f":"Animal!G37","v":0},{"$f":"Animal!H37","v":0},null,null,189]
["Animal",{"$f":"Animal!F38","v":0},{"$f":"Animal!G38","v":0},{"$f":"Animal!H38","v":0},null,null,190]
["Animal",{"$f":"Animal!F39","v":0},{"$f":"Animal!G39","v":0},{"$f":"Animal!H39","v":0},null,null,191]
["Animal",{"$f":"Animal!F44","v":0},{"$f":"Animal!G44","v":0},{"$f":"Animal!H44","v":0},null,null,192]
["Animal",{"$f":"Animal!F45","v":0},{"$f":"Animal!G45","v":0},{"$f":"Animal!H45","v":0},null,null,193]
["Animal",{"$f":"Animal!F46","v":0},{"$f":"Animal!G46","v":0},{"$f":"Animal!H46","v":0},null,null,194]
["Animal",{"$f":"Animal!F47","v":0},{"$f":"Animal!G47","v":0},{"$f":"Animal!H47","v":0},null,null,195]
["Animal",{"$f":"Animal!F48","v":0},{"$f":"Animal!G48","v":0},{"$f":"Animal!H48","v":0},null,null,196]
["Animal",{"$f":"Animal!F49","v":0},{"$f":"Animal!G49","v":0},{"$f":"Animal!H49","v":0},null,null,197]
["Animal",{"$f":"Animal!F50","v":0},{"$f":"Animal!G50","v":0},{"$f":"Animal!H50","v":0},null,null,198]
["Animal",{"$f":"Animal!F51","v":0},{"$f":"Animal!G51","v":0},{"$f":"Animal!H51","v":0},null,null,199]
["Animal",{"$f":"Animal!F55","v":0},{"$f":"Animal!G55","v":0},{"$f":"Animal!H55","v":0},null,null,200]
["Animal",{"$f":"Animal!F56","v":0},{"$f":"Animal!G56","v":0},{"$f":"Animal!H56","v":0},null,null,201]
["Animal",{"$f":"Animal!F57","v":0},{"$f":"Animal!G57","v":0},{"$f":"Animal!H57","v":0},null,null,202]
["Animal",{"$f":"Animal!F58","v":0},{"$f":"Animal!G58","v":0},{"$f":"Animal!H58","v":0},null,null,203]
["Animal",{"$f":"Animal!F59","v":0},{"$f":"Animal!G59","v":0},{"$f":"Animal!H59","v":0},null,null,204]
["Animal",{"$f":"Animal!F60","v":0},{"$f":"Animal!G60","v":0},{"$f":"Animal!H60","v":0},null,null,205]
["Animal",{"$f":"Animal!F61","v":0},{"$f":"Animal!G61","v":0},{"$f":"Animal!H61","v":0},null,null,206]
["Animal",{"$f":"Animal!F62","v":0},{"$f":"Animal!G62","v":0},{"$f":"Animal!H62","v":0},null,null,207]
["Animal",{"$f":"Animal!F63","v":0},{"$f":"Animal!G63","v":0},{"$f":"Animal!H63","v":0},null,null,208]
["Animal",{"$f":"Animal!F67","v":0},{"$f":"Animal!G67","v":0},{"$f":"Animal!H67","v":0},null,null,209]
["Animal",{"$f":"Animal!F68","v":0},{"$f":"Animal!G68","v":0},{"$f":"Animal!H68","v":0},null,null,210]
["Animal",{"$f":"Animal!F69","v":0},{"$f":"Animal!G69","v":0},{"$f":"Animal!H69","v":0},null,null,211]
["Animal",{"$f":"Animal!F70","v":0},{"$f":"Animal!G70","v":0},{"$f":"Animal!H70","v":0},null,null,212]
["Animal",{"$f":"Animal!F74","v":0},{"$f":"Animal!G74","v":0},{"$f":"Animal!H74","v":0},null,null,213]
["Animal",{"$f":"Animal!F75","v":0},{"$f":"Animal!G75","v":0},{"$f":"Animal!H75","v":0},null,null,214]
["Animal",{"$f":"Animal!F76","v":0},{"$f":"Animal!G76","v":0},{"$f":"Animal!H76","v":0},null,null,215]
["Animal",{"$f":"Animal!F77","v":0},{"$f":"Animal!G77","v":0},{"$f":"Animal!H77","v":0},null,null,216]
["Animal",{"$f":"Animal!F78","v":0},{"$f":"Animal!G78","v":0},{"$f":"Animal!H78","v":0},null,null,217]
["Physic",{"$f":"physic!G6","v":0},{"$f":"physic!H6","v":0},{"$f":"physic!I6","v":0},null,null,218]
["Physic",{"$f":"physic!G10","v":0},{"$f":"physic!H10","v":0},{"$f":"physic!I10","v":0},null,null,219]
["Physic",{"$f":"physic!G15","v":0},{"$f":"physic!H15","v":0},{"$f":"physic!I15","v":0},null,null,220]
["Physic",{"$f":"physic!G20","v":0},{"$f":"physic!H20","v":0},{"$f":"physic!I20","v":0},null,null,221]
["Physic",{"$f":"physic!G25","v":0},{"$f":"physic!H25","v":0},{"$f":"physic!I25","v":0},null,null,222]
["Physic",{"$f":"physic!G30","v":0},{"$f":"physic!H30","v":0},{"$f":"physic!I30","v":0},null,null,223]
["Physic",{"$f":"physic!G36","v":0},{"$f":"physic!H36","v":0},{"$f":"physic!I36","v":0},null,null,224]
["Physic",{"$f":"physic!G37","v":0},{"$f":"physic!H37","v":0},{"$f":"physic!I37","v":0},null,null,225]
["Physic",{"$f":"physic!G38","v":0},{"$f":"physic!H38","v":0},{"$f":"physic!I38","v":0},null,null,226]
["Physic",{"$f":"physic!G39","v":0},{"$f":"physic!H39","v":0},{"$f":"physic!I39","v":0},null,null,227]
["Physic",{"$f":"physic!G40","v":0},{"$f":"physic!H40","v":0},{"$f":"physic!I40","v":0},null,null,228]
["Physic",{"$f":"physic!G45","v":0},{"$f":"physic!H45","v":0},{"$f":"physic!I45","v":0},null,null,229]
["Physic",{"$f":"physic!G46","v":0},{"$f":"physic!H46","v":0},{"$f":"physic!I46","v":0},null,null,230]
["Physic",{"$f":"physic!G47","v":0},{"$f":"physic!H47","v":0},{"$f":"physic!I47","v":0},null,null,231]
["Physic",{"$f":"physic!G48","v":0},{"$f":"physic!H48","v":0},{"$f":"physic!I48","v":0},null,null,232]
["Physic",{"$f":"physic!G49","v":0},{"$f":"physic!H49","v":0},{"$f":"physic!I48","v":0},null,null,233]
["Physic",{"$f":"physic!G50","v":0},{"$f":"physic!H50","v":0},{"$f":"physic!I50","v":0},null,null,234]
["Physic",{"$f":"physic!G54","v":0},{"$f":"physic!H54","v":0},{"$f":"physic!I54","v":0},null,null,235]
["Physic",{"$f":"physic!G55","v":0},{"$f":"physic!H55","v":0},{"$f":"physic!I54","v":0},null,null,236]
["Physic",{"$f":"physic!G56","v":0},{"$f":"physic!H56","v":0},{"$f":"physic!I56","v":0},null,null,237]
["CdT",{"$f":"CdT!E6","v":0},{"$f":"CdT!F6","v":0},{"$f":"CdT!G6","v":0},null,null,238]
["CdT",{"$f":"CdT!E7","v":0},{"$f":"CdT!F7","v":0},{"$f":"CdT!G7","v":0},null,null,239]
["CdT",{"$f":"CdT!E8","v":0},{"$f":"CdT!F8","v":0},{"$f":"CdT!G8","v":0},null,null,240]
["CdT",{"$f":"CdT!E9","v":0},{"$f":"CdT!F9","v":0},{"$f":"CdT!G9","v":0},null,null,241]
["CdT",{"$f":"CdT!E10","v":0},{"$f":"CdT!F10","v":0},{"$f":"CdT!G10","v":0},null,null,242]
["CdT",{"$f":"CdT!E14","v":0},{"$f":"CdT!F14","v":0},{"$f":"CdT!G14","v":0},null,null,243]
["CdT",{"$f":"CdT!E15","v":0},{"$f":"CdT!F15","v":0},{"$f":"CdT!G15","v":0},null,null,244]
["CdT",{"$f":"CdT!E19","v":0},{"$f":"CdT!F19","v":0},{"$f":"CdT!G19","v":0},null,null,245]
["CdT",{"$f":"CdT!E20","v":0},{"$f":"CdT!F20","v":0},{"$f":"CdT!G20","v":0},null,null,246]
["CdT",{"$f":"CdT!E24","v":0},{"$f":"CdT!F24","v":0},{"$f":"CdT!G24","v":0},null,null,247]
["CdT",{"$f":"CdT!E25","v":0},{"$f":"CdT!F25","v":0},{"$f":"CdT!G25","v":0},null,null,248]
["CdT",{"$f":"CdT!E26","v":0},{"$f":"CdT!F26","v":0},{"$f":"CdT!G26","v":0},null,null,249]
["CdT",{"$f":"CdT!E27","v":0},{"$f":"CdT!F27","v":0},{"$f":"CdT!G27","v":0},null,null,250]
["CdT",{"$f":"CdT!E28","v":0},{"$f":"CdT!F28","v":0},{"$f":"CdT!G28","v":0},null,null,251]
["CdT",{"$f":"CdT!E29","v":0},{"$f":"CdT!F29","v":0},{"$f":"CdT!G29","v":0},null,null,252]
["CdT",{"$f":"CdT!E30","v":0},{"$f":"CdT!F30","v":0},{"$f":"CdT!G30","v":0},null,null,253]
["CdT",{"$f":"CdT!E31","v":0},{"$f":"CdT!F31","v":0},{"$f":"CdT!G31","v":0},null,null,254]
["CdT",{"$f":"CdT!E32","v":0},{"$f":"CdT!F32","v":0},{"$f":"CdT!G32","v":0},null,null,255]
["CdT",{"$f":"CdT!E37","v":0},{"$f":"CdT!F37","v":0},{"$f":"CdT!G37","v":0},null,null,256]
["CdT",{"$f":"CdT!E38","v":0},{"$f":"CdT!F38","v":0},{"$f":"CdT!G38","v":0},null,null,257]
["CdT",{"$f":"CdT!E39","v":0},{"$f":"CdT!F39","v":0},{"$f":"CdT!G39","v":0},null,null,258]
["CdT",{"$f":"CdT!E43","v":0},{"$f":"CdT!F43","v":0},{"$f":"CdT!G43","v":0},null,null,259]
["CdT",{"$f":"CdT!E48","v":0},{"$f":"CdT!F48","v":0},{"$f":"CdT!G48","v":0},null,null,260]
["CdT",{"$f":"CdT!E49","v":0},{"$f":"CdT!F49","v":0},{"$f":"CdT!G49","v":0},null,null,261]
["CdT",{"$f":"CdT!E50","v":0},{"$f":"CdT!F50","v":0},{"$f":"CdT!G50","v":0},null,null,262]
["CdT",{"$f":"CdT!E51","v":0},{"$f":"CdT!F51","v":0},{"$f":"CdT!G51","v":0},null,null,263]
["CdT",{"$f":"CdT!E52","v":0},{"$f":"CdT!F52","v":0},{"$f":"CdT!G52","v":0},null,null,264]
["CdT",{"$f":"CdT!E53","v":0},{"$f":"CdT!F53","v":0},{"$f":"CdT!G53","v":0},null,null,265]
["Analyse d'une situation de travail particulière",{"$f":"'Eval specifique'!E4","v":0},{"$f":"'Eval specifique'!F4","v":0},{"$f":"'Eval specifique'!G4","v":0},null,null,266]
["Analyse d'une situation de travail particulière",{"$f":"'Eval specifique'!E5","v":0},{"$f":"'Eval specifique'!F5","v":0},{"$f":"'Eval specifique'!G5","v":0},null,null,267]
["Analyse d'une situation de travail particulière",{"$f":"'Eval specifique'!E6","v":0},{"$f":"'Eval specifique'!F6","v":0},{"$f":"'Eval specifique'!G6","v":0},null,null,268]
["Analyse d'une situation de travail particulière",{"$f":"'Eval specifique'!E7","v":0},{"$f":"'Eval specifique'!F7","v":0},{"$f":"'Eval specifique'!G7","v":0},null,null,269]
["Analyse d'une situation de travail particulière",{"$f":"'Eval specifique'!E8","v":0},{"$f":"'Eval specifique'!F8","v":0},{"$f":"'Eval specifique'!G8","v":0},null,null,270]
["Analyse d'une situation de travail particulière",{"$f":"'Eval specifique'!E9","v":0},{"$f":"'Eval specifique'!F9","v":0},{"$f":"'Eval specifique'!G9","v":0},null,null,271]
["Analyse d'une situation de travail particulière",{"$f":"'Eval specifique'!E10","v":0},{"$f":"'Eval specifique'!F10","v":0},{"$f":"'Eval specifique'!G10","v":0},null,null,272]
["Analyse d'une situation de travail particulière",{"$f":"'Eval specifique'!E11","v":0},{"$f":"'Eval specifique'!F11","v":0},{"$f":"'Eval specifique'!G11","v":0},null,null,273]
["Analyse d'une situation de travail particulière",{"$f":"'Eval specifique'!E12","v":0},{"$f":"'Eval specifique'!F12","v":0},{"$f":"'Eval specifique'!G12","v":0},null,null,274]
["Analyse d'une situation de travail particulière",{"$f":"'Eval specifique'!E13","v":0},{"$f":"'Eval specifique'!F13","v":0},{"$f":"'Eval specifique'!G13","v":0},null,null,275]
["Analyse d'une situation de travail particulière",{"$f":"'Eval specifique'!E14","v":0},{"$f":"'Eval specifique'!F14","v":0},{"$f":"'Eval specifique'!G14","v":0},null,null,276]
["Analyse d'une situation de travail particulière",{"$f":"'Eval specifique'!E15","v":0},{"$f":"'Eval specifique'!F15","v":0},{"$f":"'Eval specifique'!G15","v":0},null,null,277]
["Analyse d'une situation de travail particulière",{"$f":"'Eval specifique'!E16","v":0},{"$f":"'Eval specifique'!F16","v":0},{"$f":"'Eval specifique'!G16","v":0},null,null,278]
["Analyse d'une situation de travail particulière",{"$f":"'Eval specifique'!E17","v":0},{"$f":"'Eval specifique'!F17","v":0},{"$f":"'Eval specifique'!G17","v":0},null,null,279]
["Analyse d'une situation de travail particulière",{"$f":"'Eval specifique'!E18","v":0},{"$f":"'Eval specifique'!F18","v":0},{"$f":"'Eval specifique'!G18","v":0},null,null,280]
["Analyse d'une situation de travail particulière",{"$f":"'Eval specifique'!E19","v":0},{"$f":"'Eval specifique'!F19","v":0},{"$f":"'Eval specifique'!G19","v":0},null,null,281]
[]
["Le Responsable de la structure prend la responsabilité des renseignements contenus dans ce document"]
[null,null,"   A :__  ",null,"Le : "]
[null,"Signature__ "]

{"sheet":"Feuil1","index":15,"n_rows":21,"n_cols":5,"rows_kept":21,"cut":false,"hidden":true,"merged":[]}
["Principaux Risques","Lampe UV","oui"]
["Locaux/Issues","Platine UV","non","Eclairage","Maîtrise du risque"]
["Incendie","Eclairage","en cours","Lumière naturelle","Maîtrisé"]
["Electrique",null,"Option de réponses","Lumière artificielle","A améliorer"]
["Biologique",null,null,"Les 2","A maîtriser"]
["Radioactif"]
["Chimique"]
["Expérimentation animale"]
["Physiques"]
["Conditions de travail"]
["Missions/Déplacement"]
["TMS"]
[]
[null,null,"Priorité","Exercice extincteurs"]
["choix de réponse",null,"Urgent","Moins de 6 mois"]
["oui",null,"Rapidement","1 à 2 ans"]
["non",null,"A surveiller","Jamais"]
["exceptionnellement"]
["régulièrement"]
["sans objet"]
["occasionnellement"]

{"sheet":"Paramètres","index":16,"n_rows":62,"n_cols":28,"rows_kept":62,"cut":false,"hidden":true,"merged":[[0,0,1,23],[9,13,9,23],[14,13,14,23],[44,0,44,10],[44,13,44,23],[25,0,25,10],[25,13,25,23],[34,0,34,10],[34,13,34,23],[3,0,3,10],[3,13,3,23]]}
["Paramètres des listes déroulantes"]
[]
[]
["LOCAUX ET ISSUES",null,null,null,null,null,null,null,null,null,null,null,null,"RISQUE INCENDIE",null,null,null,null,null,null,null,null,null,null,null,null,null,1]
[null,null,null,null,null,null,null,null,null,null,null,null,null,null,null,null,null,null,null,null,null,null,null,null,null,null,null,2]
["INSA",null,"Sans objet",null,0,null,"Clé",null,"L2",null,"Oui : Résultat positif",null,null,"Moins de 6 mois",null,"Vérifié annuellement",null,null,null,null,null,null,null,null,null,null,null,3]
["Institut CURIE",null,"Oui",null,1,null,"Code ",null,"L3",null,"Oui : Résultat négatif",null,null,"1 à 2 ans",null,"Jamais vérifié",null,null,null,null,null,null,null,null,null,null,null,4]
["ENS",null,"Non",null,2,null,"Badge",null,"Culture cellulaire",null,"Sans objet : le bâtiment n'est pas concerné par cette réglementation)",null,null,"Jamais réalisé",null,"Inexistant",null,null,null,null,null,null,null,null,null,null,null,5]
["INSERM",null,null,null,3,null,"Aucun",null,"Zone contrôlée",null,null,null,null,null,null,null,null,null,null,null,null,null,null,null,null,null,null,6]
["CNRS",null,"IGH",null,4,null,"Autre",null,"Zone surveillée",null,"Mécanique générale",null,null,"RISQUE ELECTRIQUE",null,null,null,null,null,null,null,null,null,null,null,null,null,7]
["INRA",null,"ERP",null,5,null,"Non ",null,"Animalerie",null,"Mécanique partielle",null,null,"Unité",null,null,null,null,null,null,null,null,null,null,null,null,null,8]
["UNIVERSITE",null,"IGH + ERP",null,6,null,"Oui : non ventilé",null,"Aucune",null,"Naturelle",null,null,"Hébergeant",null,null,null,null,null,null,null,null,null,null,null,null,null,9]
["APHP",null,"Sans objet",null,7,null,"Oui : ventilé",null,"Ventilée individuellement",null,null,null,null,"Délégation Régionale",null,null,null,null,null,null,null,null,null,null,null,null,null,10]
["Hospices Civils Lyon",null,null,null,8,null,"Oui : ventilé + détection O2",null,"Ventillation générale",null,"Non ventilée",null,null,null,null,null,null,null,null,null,null,null,null,null,null,null,null,11]
["CEA",null,"Ascenseur",null,9,null,"Sans objet",null,"Sans objet",null,"Ventilée individuellement",null,null,"RISQUE BIOLOGIQUE",null,null,null,null,null,null,null,null,null,null,null,null,null,12]
["Inst PASTEUR",null,"Monte charge",null,10,null,null,null,null,null,"Sur ventilation générale",null,null,"EFS",null,"Bovins",null,"Oui pour tous",null,"Sauvage",null,"Hommes",null,"Oeil",null,null,null,13]
["CHU / CHR",null,"Les deux",null,null,null,"Oui",null,"Rez de chaussée",null,"Sans objet",null,null,"Hôpital",null,"Ovins",null,"Oui pour certains ",null,"Conventionnelle",null,"Bovins",null,"SNC",null,null,null,14]
["Autre",null,"Non",null,"Pas d'atelier",null,"Non",null,"En étage",null,null,null,null,"Autre provenance",null,"Rongeurs",null,"Aucune convention",null,null,null,"Ovins",null,"LCR",null,null,null,15]
[null,null,null,null,"Machines conformes",null,"Sans objet",null,null,null,null,null,null,null,null,"Primates",null,"Sans objet",null,null,null,null,null,"Org. Lymphoides"]
[null,null,null,null,"Machines non conformes",null,null,null,"Non ",null,"Non ",null,null,"Latex",null,null,null,null,null,"Oui",null,null,null,"Autres",null,null,null,16]
["Intérieur",null,"Maîtrisé",null,null,null,"Urgent",null,"Oui : non ventilé",null,"Oui : non ventilé",null,null,"Nitrile",null,"FFP1",null,"Coton",null,"Non ",null,"Simple",null,null,null,null,null,17]
["Extérieur",null,"A améliorer",null,null,null,"Rapidement",null,"Oui : ventilé",null,"Oui : ventilé",null,null,"Latex et nitrile",null,"FFP2",null,"Non tissé",null,"Pression atmosphérique",null,"Double",null,null,null,null,null,18]
["Intérieur et extérieur",null,"A maîtriser",null,null,null,"A surveiller",null,"Oui : ventilé + détection spécifique",null,"Sans objet",null,null,"Autre (à préciser)",null,"FFP3",null,"Jetable",null,null,null,null,null,null,null,null,null,19]
["Non",null,null,null,null,null,null,null,"Sans objet",null,null,null,null,null,null,null,null,null,null,null,null,null,null,null,null,null,null,20]
[null,null,null,null,null,null,null,null,null,null,null,null,null,null,null,null,null,null,null,null,null,null,null,null,null,null,null,21]
["RISQUE RADIOACTIF",null,null,null,null,null,null,null,null,null,null,null,null,"RISQUE CHIMIQUE",null,null,null,null,null,null,null,null,null,null,null,null,null,22]
["Mensuel",null,"Propre à l'unité",null,"PVC ",null,null,null,null,null,null,null,null,"Latex",null,"Filtrants",null,"Coton",null,null,null,null,null,null,null,null,null,23]
["Trimestriel",null,"Partagée avec d'autres",null,"Latex",null,null,null,null,null,null,null,null,"PVC",null,"Filtrants à cartouche",null,"Non tissé",null,null,null,null,null,null,null,null,null,24]
["Semestriel",null,"Sans objet",null,"Autres",null,null,null,null,null,null,null,null,"Néoprène ",null,"Aucun",null,null,null,null,null,null,null,null,null,null,null,25]
["Annuel",null,null,null,"Aucun",null,null,null,null,null,null,null,null,"Latex et PVC",null,null,null,null,null,null,null,null,null,null,null,null,null,26]
["Jamais",null,null,null,null,null,null,null,null,null,null,null,null,"Nitrile",null,null,null,null,null,null,null,null,null,null,null,null,null,27]
[null,null,null,null,null,null,null,null,null,null,null,null,null,"Autre",null,null,null,null,null,null,null,null,null,null,null,null,null,28]
[null,null,null,null,null,null,null,null,null,null,null,null,null,"autre",null,null,null,null,null,null,null,null,null,null,null,null,null,29]
[null,null,null,null,null,null,null,null,null,null,null,null,null,null,null,null,null,null,null,null,null,null,null,null,null,null,null,30]
["EXPERIMENTATION ANIMALE",null,null,null,null,null,null,null,null,null,null,null,null,"RISQUE PHYSIQUE"]
["A2",null,"Chirurgicaux",null,"Latex",null,"Coton",null,null,null,null,null,null,"Classe 1",null,"Lunettes",null,"Aucune protection ",null,"Platine UV"]
["A3",null,"FFP1",null,"Nitrile",null,"Non tissé",null,null,null,null,null,null,"Classe 2",null,"Masque facial",null,"Ecran",null,"Lampe UV"]
["Sans objet",null,"FFP2",null,"Latex et nitrile",null,"Jetable",null,null,null,null,null,null,"Classe 3",null,"Visière",null,"Capotage du rayonnement",null,"Platine et lampe UV"]
[null,null,"FFP3",null,"A mailles métalliques",null,null,null,null,null,null,null,null,"Classe 4",null,"Toutes protections",null,null,null,"Autres"]
[null,null,null,null,null,null,null,null,null,null,null,null,null,null,null,"Aucune protection "]
[]
[]
[]
[]
["CONDITIONS DE TRAVAIL",null,null,null,null,null,null,null,null,null,null,null,null,"Unité"]
["Fréquemment",null,"Odeurs animaleries",null,"Lumière naturelle",null,"Bon ",null,">10kg",null,null,null,null,"Biologique"]
["Occasionnellement",null,"Produits volatils ",null,"Lumière artificielle",null,"Mauvais",null,">20kg",null,null,null,null,"Chimique",null,"A jour",null,"Oui pour tous"]
["Jamais",null,"Stérilisation ",null,"Lumière artificielle + naturelle",null,null,null,">30kg",null,null,null,null,"Conditions de travail",null,"A jour partiellement",null,"Oui partiellement"]
[null,null,"Pas de nuisance",null,null,null,"Adapté ",null,null,null,null,null,null,"Ecran",null,"Pas à jour",null,"Non"]
["Très satisfaisantes",null,"Plusieurs types",null,"Aucune",null,"Inadapté",null,"Oui",null,null,null,null,"Electrique"]
["Satisfaisantes",null,"Autres",null,"Occassionnelles",null,null,null,"Non",null,null,null,null,"Expérimentation animale"]
["Moyennes",null,null,null,"Permanentes",null,null,null,"Exceptionnellement",null,null,null,null,"Incendie"]
["Peu satisfaisantes",null,"Satisfaisant",null,null,null,null,null,"Régulièrement",null,null,null,null,"Locaux et issus"]
["Agréable ",null,"Moyen",null,null,null,null,null,"Occasionnellement",null,null,null,null,"Machines outils"]
["Moyenne",null,"Non satisfaisant",null,null,null,null,null,"Sans objet",null,null,null,null,"Missions/Déplacement"]
["Stressante",null,null,null,null,null,null,null,null,null,null,null,null,"Physique"]
[null,null,null,null,null,null,null,null,null,null,null,null,null,"Radioactif"]
[null,null,null,null,null,null,null,null,null,null,null,null,null,"TMS/Port de charge"]
[]
[null,null,"Urgent"]
[null,null,"Rapidement"]
[null,null,"A surveiller"]

{"sheet":"4couv","index":17,"n_rows":0,"n_cols":0,"rows_kept":0,"cut":false,"hidden":true,"merged":[]}